{"text_format":"3","workbook":"xlsx","n_sheets":4,"sheets":["RESUMO DO ORÇAMENTO NO ANO","RESUMO DE DESPESAS MENSAIS","DESPESAS DISCRIMINADAS","DONATIVOS E PATROCÍNIOS"],"not_rendered":{"images":1,"defined_names":15},"read":"whole","date_system":"1900"}

{"sheet":"RESUMO DO ORÇAMENTO NO ANO","index":0,"n_rows":16,"n_cols":7,"rows_kept":16,"merged":[[1,1,1,4]]}
[]
[null,"REAL versus ORÇAMENTO NO ANO",{"$nulls":3},"ANO",{"$f":"YEAR(TODAY())","v":2019}]
[null,"Razão código","Título da conta","Real","Orçamento","Restante R$","Restante %"]
[null,1000,"Publicidade",{"$f":"SUMIF(ResumoDeDespesasMensais[Razão código],TabelaAtéaPresenteData[[#This Row],[Razão código]],ResumoDeDespesasMensais[Total])","v":{"v":0,"d":"R$ 0.00"}},{"v":100000,"d":"R$ 100,000.00"},{"$f":"IF(TabelaAtéaPresenteData[[#This Row],[Orçamento]]=\"\",\"\",TabelaAtéaPresenteData[[#This Row],[Orçamento]]-TabelaAtéaPresenteData[[#This Row],[Real]])","v":{"v":100000,"d":"R$ 100,000.00"}},{"$f":"IFERROR(TabelaAtéaPresenteData[[#This Row],[Restante R$]]/TabelaAtéaPresenteData[[#This Row],[Orçamento]],\"\")","v":{"v":1,"d":"100.00%"}}]
[null,2000,"Equipamento de escritório",{"$f":"SUMIF(ResumoDeDespesasMensais[Razão código],TabelaAtéaPresenteData[[#This Row],[Razão código]],ResumoDeDespesasMensais[Total])","v":{"v":0,"d":"R$ 0.00"}},{"v":100000,"d":"R$ 100,000.00"},{"$f":"IF(TabelaAtéaPresenteData[[#This Row],[Orçamento]]=\"\",\"\",TabelaAtéaPresenteData[[#This Row],[Orçamento]]-TabelaAtéaPresenteData[[#This Row],[Real]])","v":{"v":100000,"d":"R$ 100,000.00"}},{"$f":"IFERROR(TabelaAtéaPresenteData[[#This Row],[Restante R$]]/TabelaAtéaPresenteData[[#This Row],[Orçamento]],\"\")","v":{"v":1,"d":"100.00%"}}]
[null,3000,"Impressoras",{"$f":"SUMIF(ResumoDeDespesasMensais[Razão código],TabelaAtéaPresenteData[[#This Row],[Razão código]],ResumoDeDespesasMensais[Total])","v":{"v":0,"d":"R$ 0.00"}},{"v":100000,"d":"R$ 100,000.00"},{"$f":"IF(TabelaAtéaPresenteData[[#This Row],[Orçamento]]=\"\",\"\",TabelaAtéaPresenteData[[#This Row],[Orçamento]]-TabelaAtéaPresenteData[[#This Row],[Real]])","v":{"v":100000,"d":"R$ 100,000.00"}},{"$f":"IFERROR(TabelaAtéaPresenteData[[#This Row],[Restante R$]]/TabelaAtéaPresenteData[[#This Row],[Orçamento]],\"\")","v":{"v":1,"d":"100.00%"}}]
[null,4000,"Custos de servidor",{"$f":"SUMIF(ResumoDeDespesasMensais[Razão código],TabelaAtéaPresenteData[[#This Row],[Razão código]],ResumoDeDespesasMensais[Total])","v":{"v":0,"d":"R$ 0.00"}},{"v":100000,"d":"R$ 100,000.00"},{"$f":"IF(TabelaAtéaPresenteData[[#This Row],[Orçamento]]=\"\",\"\",TabelaAtéaPresenteData[[#This Row],[Orçamento]]-TabelaAtéaPresenteData[[#This Row],[Real]])","v":{"v":100000,"d":"R$ 100,000.00"}},{"$f":"IFERROR(TabelaAtéaPresenteData[[#This Row],[Restante R$]]/TabelaAtéaPresenteData[[#This Row],[Orçamento]],\"\")","v":{"v":1,"d":"100.00%"}}]
[null,5000,"Suprimentos",{"$f":"SUMIF(ResumoDeDespesasMensais[Razão código],TabelaAtéaPresenteData[[#This Row],[Razão código]],ResumoDeDespesasMensais[Total])","v":{"v":0,"d":"R$ 0.00"}},{"v":50000,"d":"R$ 50,000.00"},{"$f":"IF(TabelaAtéaPresenteData[[#This Row],[Orçamento]]=\"\",\"\",TabelaAtéaPresenteData[[#This Row],[Orçamento]]-TabelaAtéaPresenteData[[#This Row],[Real]])","v":{"v":50000,"d":"R$ 50,000.00"}},{"$f":"IFERROR(TabelaAtéaPresenteData[[#This Row],[Restante R$]]/TabelaAtéaPresenteData[[#This Row],[Orçamento]],\"\")","v":{"v":1,"d":"100.00%"}}]
[null,6000,"Despesas de cliente",{"$f":"SUMIF(ResumoDeDespesasMensais[Razão código],TabelaAtéaPresenteData[[#This Row],[Razão código]],ResumoDeDespesasMensais[Total])","v":{"v":0,"d":"R$ 0.00"}},{"v":25000,"d":"R$ 25,000.00"},{"$f":"IF(TabelaAtéaPresenteData[[#This Row],[Orçamento]]=\"\",\"\",TabelaAtéaPresenteData[[#This Row],[Orçamento]]-TabelaAtéaPresenteData[[#This Row],[Real]])","v":{"v":25000,"d":"R$ 25,000.00"}},{"$f":"IFERROR(TabelaAtéaPresenteData[[#This Row],[Restante R$]]/TabelaAtéaPresenteData[[#This Row],[Orçamento]],\"\")","v":{"v":1,"d":"100.00%"}}]
[null,7000,"Computadores",{"$f":"SUMIF(ResumoDeDespesasMensais[Razão código],TabelaAtéaPresenteData[[#This Row],[Razão código]],ResumoDeDespesasMensais[Total])","v":{"v":0,"d":"R$ 0.00"}},{"v":75000,"d":"R$ 75,000.00"},{"$f":"IF(TabelaAtéaPresenteData[[#This Row],[Orçamento]]=\"\",\"\",TabelaAtéaPresenteData[[#This Row],[Orçamento]]-TabelaAtéaPresenteData[[#This Row],[Real]])","v":{"v":75000,"d":"R$ 75,000.00"}},{"$f":"IFERROR(TabelaAtéaPresenteData[[#This Row],[Restante R$]]/TabelaAtéaPresenteData[[#This Row],[Orçamento]],\"\")","v":{"v":1,"d":"100.00%"}}]
[null,8000,"Plano médico",{"$f":"SUMIF(ResumoDeDespesasMensais[Razão código],TabelaAtéaPresenteData[[#This Row],[Razão código]],ResumoDeDespesasMensais[Total])","v":{"v":0,"d":"R$ 0.00"}},{"v":65000,"d":"R$ 65,000.00"},{"$f":"IF(TabelaAtéaPresenteData[[#This Row],[Orçamento]]=\"\",\"\",TabelaAtéaPresenteData[[#This Row],[Orçamento]]-TabelaAtéaPresenteData[[#This Row],[Real]])","v":{"v":65000,"d":"R$ 65,000.00"}},{"$f":"IFERROR(TabelaAtéaPresenteData[[#This Row],[Restante R$]]/TabelaAtéaPresenteData[[#This Row],[Orçamento]],\"\")","v":{"v":1,"d":"100.00%"}}]
[null,9000,"Custos do edifício",{"$f":"SUMIF(ResumoDeDespesasMensais[Razão código],TabelaAtéaPresenteData[[#This Row],[Razão código]],ResumoDeDespesasMensais[Total])","v":{"v":0,"d":"R$ 0.00"}},{"v":125000,"d":"R$ 125,000.00"},{"$f":"IF(TabelaAtéaPresenteData[[#This Row],[Orçamento]]=\"\",\"\",TabelaAtéaPresenteData[[#This Row],[Orçamento]]-TabelaAtéaPresenteData[[#This Row],[Real]])","v":{"v":125000,"d":"R$ 125,000.00"}},{"$f":"IFERROR(TabelaAtéaPresenteData[[#This Row],[Restante R$]]/TabelaAtéaPresenteData[[#This Row],[Orçamento]],\"\")","v":{"v":1,"d":"100.00%"}}]
[null,10000,"Marketing",{"$f":"SUMIF(ResumoDeDespesasMensais[Razão código],TabelaAtéaPresenteData[[#This Row],[Razão código]],ResumoDeDespesasMensais[Total])","v":{"v":0,"d":"R$ 0.00"}},{"v":100000,"d":"R$ 100,000.00"},{"$f":"IF(TabelaAtéaPresenteData[[#This Row],[Orçamento]]=\"\",\"\",TabelaAtéaPresenteData[[#This Row],[Orçamento]]-TabelaAtéaPresenteData[[#This Row],[Real]])","v":{"v":100000,"d":"R$ 100,000.00"}},{"$f":"IFERROR(TabelaAtéaPresenteData[[#This Row],[Restante R$]]/TabelaAtéaPresenteData[[#This Row],[Orçamento]],\"\")","v":{"v":1,"d":"100.00%"}}]
[null,11000,"Donativos",{"$f":"SUMIF(ResumoDeDespesasMensais[Razão código],TabelaAtéaPresenteData[[#This Row],[Razão código]],ResumoDeDespesasMensais[Total])","v":{"v":0,"d":"R$ 0.00"}},{"v":250000,"d":"R$ 250,000.00"},{"$f":"IF(TabelaAtéaPresenteData[[#This Row],[Orçamento]]=\"\",\"\",TabelaAtéaPresenteData[[#This Row],[Orçamento]]-TabelaAtéaPresenteData[[#This Row],[Real]])","v":{"v":250000,"d":"R$ 250,000.00"}},{"$f":"IFERROR(TabelaAtéaPresenteData[[#This Row],[Restante R$]]/TabelaAtéaPresenteData[[#This Row],[Orçamento]],\"\")","v":{"v":1,"d":"100.00%"}}]
[null,12000,"Patrocínios",{"$f":"SUMIF(ResumoDeDespesasMensais[Razão código],TabelaAtéaPresenteData[[#This Row],[Razão código]],ResumoDeDespesasMensais[Total])","v":{"v":0,"d":"R$ 0.00"}},{"v":50000,"d":"R$ 50,000.00"},{"$f":"IF(TabelaAtéaPresenteData[[#This Row],[Orçamento]]=\"\",\"\",TabelaAtéaPresenteData[[#This Row],[Orçamento]]-TabelaAtéaPresenteData[[#This Row],[Real]])","v":{"v":50000,"d":"R$ 50,000.00"}},{"$f":"IFERROR(TabelaAtéaPresenteData[[#This Row],[Restante R$]]/TabelaAtéaPresenteData[[#This Row],[Orçamento]],\"\")","v":{"v":1,"d":"100.00%"}}]
[null,"Total",null,{"$f":"SUBTOTAL(109,TabelaAtéaPresenteData[Real])","v":{"v":0,"d":"R$ 0.00"}},{"$f":"SUBTOTAL(109,TabelaAtéaPresenteData[Orçamento])","v":{"v":1140000,"d":"R$ 1,140,000.00"}},{"$f":"SUBTOTAL(109,TabelaAtéaPresenteData[Restante R$])","v":{"v":1140000,"d":"R$ 1,140,000.00"}},{"$f":"TabelaAtéaPresenteData[[#Totals],[Restante R$]]/TabelaAtéaPresenteData[[#Totals],[Orçamento]]","v":{"v":1,"d":"100.00%"}}]

{"sheet":"RESUMO DE DESPESAS MENSAIS","index":1,"n_rows":18,"n_cols":17,"rows_kept":18,"merged":[[1,1,1,16]]}
[]
[null,"RESUMO DE DESPESAS MENSAIS"]
[null,"A segmentação de dados para filtrar dados por conta títulos está nessa célula.",null,{"$f":"DATEVALUE(\"1-JAN\"&_ANO)","v":{"v":43466,"d":"4346600.00%"}},{"$f":"DATEVALUE(\"1-FEV\"&_ANO)","v":{"v":43497,"d":"4349700.00%"}},{"$f":"DATEVALUE(\"1-MAR\"&_ANO)","v":{"v":43525,"d":"4352500.00%"}},{"$f":"DATEVALUE(\"1-ABR\"&_ANO)","v":{"v":43556,"d":"4355600.00%"}},{"$f":"DATEVALUE(\"1-MAI\"&_ANO)","v":{"v":43586,"d":"4358600.00%"}},{"$f":"DATEVALUE(\"1-JUN\"&_ANO)","v":{"v":43617,"d":"4361700.00%"}},{"$f":"DATEVALUE(\"1-JUL\"&_ANO)","v":{"v":43647,"d":"4364700.00%"}},{"$f":"DATEVALUE(\"1-AGO\"&_ANO)","v":{"v":43678,"d":"4367800.00%"}},{"$f":"DATEVALUE(\"1-SET\"&_ANO)","v":{"v":43709,"d":"4370900.00%"}},{"$f":"DATEVALUE(\"1-OUT\"&_ANO)","v":{"v":43739,"d":"4373900.00%"}},{"$f":"DATEVALUE(\"1-NOV\"&_ANO)","v":{"v":43770,"d":"4377000.00%"}},{"$f":"DATEVALUE(\"1-DEZ\"&_ANO)","v":{"v":43800,"d":"4380000.00%"}}]
[{"$nulls":3},{"$f":"EOMONTH(D3,0)","v":{"v":43496,"d":"4349600.00%"}},{"$f":"EOMONTH(E3,0)","v":{"v":43524,"d":"4352400.00%"}},{"$f":"EOMONTH(F3,0)","v":{"v":43555,"d":"4355500.00%"}},{"$f":"EOMONTH(G3,0)","v":{"v":43585,"d":"4358500.00%"}},{"$f":"EOMONTH(H3,0)","v":{"v":43616,"d":"4361600.00%"}},{"$f":"EOMONTH(I3,0)","v":{"v":43646,"d":"4364600.00%"}},{"v":43677,"d":"4367700.00%"},{"v":43708,"d":"4370800.00%"},{"v":43738,"d":"4373800.00%"},{"v":43769,"d":"4376900.00%"},{"v":43799,"d":"4379900.00%"},{"v":43830,"d":"4383000.00%"}]
[null,"Razão código","Título da conta","Janeiro","Fevereiro","Março","Abr","Maio","Jun","Julho","Agosto","Setembro","Outubro","Novembro","Dezembro","Total"," "]
[null,1000,"Publicidade",{"$f":"SUMIFS(DespesasDiscriminadas[Verifique quantidade],DespesasDiscriminadas[Razão código],ResumoDeDespesasMensais[[#This Row],[Razão código]],DespesasDiscriminadas[Data da fatura:],\">=\"&D$3,DespesasDiscriminadas[Data da fatura:],\"<=\"&D$4)+SUMIFS(Outros[Verifique quantidade],Outros[Razão código],ResumoDeDespesasMensais[[#This Row],[Razão código]],Outros[Solicitação de seleção de data iniciada],\">=\"&DATEVALUE(\" 1 \"&ResumoDeDespesasMensais[[#Headers],[Janeiro]]&_ANO),Outros[Solicitação de seleção de data iniciada],\"<=\"&D$4)","v":{"v":0,"d":"R$ 0.00"}},{"$f":"SUMIFS(DespesasDiscriminadas[Verifique quantidade],DespesasDiscriminadas[Razão código],ResumoDeDespesasMensais[[#This Row],[Razão código]],DespesasDiscriminadas[Data da fatura:],\">=\"&E$3,DespesasDiscriminadas[Data da fatura:],\"<=\"&E$4)+SUMIFS(Outros[Verifique quantidade],Outros[Razão código],ResumoDeDespesasMensais[[#This Row],[Razão código]],Outros[Solicitação de seleção de data iniciada],\">=\"&DATEVALUE(\" 1 \"&ResumoDeDespesasMensais[[#Headers],[Fevereiro]]&_ANO),Outros[Solicitação de seleção de data iniciada],\"<=\"&E$4)","v":{"v":0,"d":"R$ 0.00"}},{"$f":"SUMIFS(DespesasDiscriminadas[Verifique quantidade],DespesasDiscriminadas[Razão código],ResumoDeDespesasMensais[[#This Row],[Razão código]],DespesasDiscriminadas[Data da fatura:],\">=\"&F$3,DespesasDiscriminadas[Data da fatura:],\"<=\"&F$4)+SUMIFS(Outros[Verifique quantidade],Outros[Razão código],ResumoDeDespesasMensais[[#This Row],[Razão código]],Outros[Solicitação de seleção de data iniciada],\">=\"&DATEVALUE(\" 1 \"&ResumoDeDespesasMensais[[#Headers],[Março]]&_ANO),Outros[Solicitação de seleção de data iniciada],\"<=\"&F$4)","v":{"v":0,"d":"R$ 0.00"}},{"$f":"SUMIFS(DespesasDiscriminadas[Verifique quantidade],DespesasDiscriminadas[Razão código],ResumoDeDespesasMensais[[#This Row],[Razão código]],DespesasDiscriminadas[Data da fatura:],\">=\"&G$3,DespesasDiscriminadas[Data da fatura:],\"<=\"&G$4)+SUMIFS(Outros[Verifique quantidade],Outros[Razão código],ResumoDeDespesasMensais[[#This Row],[Razão código]],Outros[Solicitação de seleção de data iniciada],\">=\"&DATEVALUE(\" 1 \"&ResumoDeDespesasMensais[[#Headers],[Abr]]&_ANO),Outros[Solicitação de seleção de data iniciada],\"<=\"&G$4)","v":{"v":0,"d":"R$ 0.00"}},{"$f":"SUMIFS(DespesasDiscriminadas[Verifique quantidade],DespesasDiscriminadas[Razão código],ResumoDeDespesasMensais[[#This Row],[Razão código]],DespesasDiscriminadas[Data da fatura:],\">=\"&H$3,DespesasDiscriminadas[Data da fatura:],\"<=\"&H$4)+SUMIFS(Outros[Verifique quantidade],Outros[Razão código],ResumoDeDespesasMensais[[#This Row],[Razão código]],Outros[Solicitação de seleção de data iniciada],\">=\"&DATEVALUE(\" 1 \"&ResumoDeDespesasMensais[[#Headers],[Maio]]&_ANO),Outros[Solicitação de seleção de data iniciada],\"<=\"&H$4)","v":{"v":0,"d":"R$ 0.00"}},{"$f":"SUMIFS(DespesasDiscriminadas[Verifique quantidade],DespesasDiscriminadas[Razão código],ResumoDeDespesasMensais[[#This Row],[Razão código]],DespesasDiscriminadas[Data da fatura:],\">=\"&I$3,DespesasDiscriminadas[Data da fatura:],\"<=\"&I$4)+SUMIFS(Outros[Verifique quantidade],Outros[Razão código],ResumoDeDespesasMensais[[#This Row],[Razão código]],Outros[Solicitação de seleção de data iniciada],\">=\"&DATEVALUE(\" 1 \"&ResumoDeDespesasMensais[[#Headers],[Jun]]&_ANO),Outros[Solicitação de seleção de data iniciada],\"<=\"&I$4)","v":{"v":0,"d":"R$ 0.00"}},{"$f":"SUMIFS(DespesasDiscriminadas[Verifique quantidade],DespesasDiscriminadas[Razão código],ResumoDeDespesasMensais[[#This Row],[Razão código]],DespesasDiscriminadas[Data da fatura:],\">=\"&J$3,DespesasDiscriminadas[Data da fatura:],\"<=\"&J$4)+SUMIFS(Outros[Verifique quantidade],Outros[Razão código],ResumoDeDespesasMensais[[#This Row],[Razão código]],Outros[Solicitação de seleção de data iniciada],\">=\"&DATEVALUE(\" 1 \"&ResumoDeDespesasMensais[[#Headers],[Julho]]&_ANO),Outros[Solicitação de seleção de data iniciada],\"<=\"&J$4)","v":{"v":0,"d":"R$ 0.00"}},{"$f":"SUMIFS(DespesasDiscriminadas[Verifique quantidade],DespesasDiscriminadas[Razão código],ResumoDeDespesasMensais[[#This Row],[Razão código]],DespesasDiscriminadas[Data da fatura:],\">=\"&K$3,DespesasDiscriminadas[Data da fatura:],\"<=\"&K$4)+SUMIFS(Outros[Verifique quantidade],Outros[Razão código],ResumoDeDespesasMensais[[#This Row],[Razão código]],Outros[Solicitação de seleção de data iniciada],\">=\"&DATEVALUE(\" 1 \"&ResumoDeDespesasMensais[[#Headers],[Agosto]]&_ANO),Outros[Solicitação de seleção de data iniciada],\"<=\"&K$4)","v":{"v":0,"d":"R$ 0.00"}},{"$f":"SUMIFS(DespesasDiscriminadas[Verifique quantidade],DespesasDiscriminadas[Razão código],ResumoDeDespesasMensais[[#This Row],[Razão código]],DespesasDiscriminadas[Data da fatura:],\">=\"&L$3,DespesasDiscriminadas[Data da fatura:],\"<=\"&L$4)+SUMIFS(Outros[Verifique quantidade],Outros[Razão código],ResumoDeDespesasMensais[[#This Row],[Razão código]],Outros[Solicitação de seleção de data iniciada],\">=\"&DATEVALUE(\" 1 \"&ResumoDeDespesasMensais[[#Headers],[Setembro]]&_ANO),Outros[Solicitação de seleção de data iniciada],\"<=\"&L$4)","v":{"v":0,"d":"R$ 0.00"}},{"$f":"SUMIFS(DespesasDiscriminadas[Verifique quantidade],DespesasDiscriminadas[Razão código],ResumoDeDespesasMensais[[#This Row],[Razão código]],DespesasDiscriminadas[Data da fatura:],\">=\"&M$3,DespesasDiscriminadas[Data da fatura:],\"<=\"&M$4)+SUMIFS(Outros[Verifique quantidade],Outros[Razão código],ResumoDeDespesasMensais[[#This Row],[Razão código]],Outros[Solicitação de seleção de data iniciada],\">=\"&DATEVALUE(\" 1 \"&ResumoDeDespesasMensais[[#Headers],[Outubro]]&_ANO),Outros[Solicitação de seleção de data iniciada],\"<=\"&M$4)","v":{"v":0,"d":"R$ 0.00"}},{"$f":"SUMIFS(DespesasDiscriminadas[Verifique quantidade],DespesasDiscriminadas[Razão código],ResumoDeDespesasMensais[[#This Row],[Razão código]],DespesasDiscriminadas[Data da fatura:],\">=\"&N$3,DespesasDiscriminadas[Data da fatura:],\"<=\"&N$4)+SUMIFS(Outros[Verifique quantidade],Outros[Razão código],ResumoDeDespesasMensais[[#This Row],[Razão código]],Outros[Solicitação de seleção de data iniciada],\">=\"&DATEVALUE(\" 1 \"&ResumoDeDespesasMensais[[#Headers],[Novembro]]&_ANO),Outros[Solicitação de seleção de data iniciada],\"<=\"&N$4)","v":{"v":0,"d":"R$ 0.00"}},{"$f":"SUMIFS(DespesasDiscriminadas[Verifique quantidade],DespesasDiscriminadas[Razão código],ResumoDeDespesasMensais[[#This Row],[Razão código]],DespesasDiscriminadas[Data da fatura:],\">=\"&O$3,DespesasDiscriminadas[Data da fatura:],\"<=\"&O$4)+SUMIFS(Outros[Verifique quantidade],Outros[Razão código],ResumoDeDespesasMensais[[#This Row],[Razão código]],Outros[Solicitação de seleção de data iniciada],\">=\"&DATEVALUE(\" 1 \"&ResumoDeDespesasMensais[[#Headers],[Dezembro]]&_ANO),Outros[Solicitação de seleção de data iniciada],\"<=\"&O$4)","v":{"v":0,"d":"R$ 0.00"}},{"$f":"SUM(ResumoDeDespesasMensais[[#This Row],[Janeiro]:[Dezembro]])","v":{"v":0,"d":"R$ 0.00"}}]
[null,2000,"Equipamento de escritório",{"$f":"SUMIFS(DespesasDiscriminadas[Verifique quantidade],DespesasDiscriminadas[Razão código],ResumoDeDespesasMensais[[#This Row],[Razão código]],DespesasDiscriminadas[Data da fatura:],\">=\"&D$3,DespesasDiscriminadas[Data da fatura:],\"<=\"&D$4)+SUMIFS(Outros[Verifique quantidade],Outros[Razão código],ResumoDeDespesasMensais[[#This Row],[Razão código]],Outros[Solicitação de seleção de data iniciada],\">=\"&DATEVALUE(\" 1 \"&ResumoDeDespesasMensais[[#Headers],[Janeiro]]&_ANO),Outros[Solicitação de seleção de data iniciada],\"<=\"&D$4)","v":{"v":0,"d":"R$ 0.00"}},{"$f":"SUMIFS(DespesasDiscriminadas[Verifique quantidade],DespesasDiscriminadas[Razão código],ResumoDeDespesasMensais[[#This Row],[Razão código]],DespesasDiscriminadas[Data da fatura:],\">=\"&E$3,DespesasDiscriminadas[Data da fatura:],\"<=\"&E$4)+SUMIFS(Outros[Verifique quantidade],Outros[Razão código],ResumoDeDespesasMensais[[#This Row],[Razão código]],Outros[Solicitação de seleção de data iniciada],\">=\"&DATEVALUE(\" 1 \"&ResumoDeDespesasMensais[[#Headers],[Fevereiro]]&_ANO),Outros[Solicitação de seleção de data iniciada],\"<=\"&E$4)","v":{"v":0,"d":"R$ 0.00"}},{"$f":"SUMIFS(DespesasDiscriminadas[Verifique quantidade],DespesasDiscriminadas[Razão código],ResumoDeDespesasMensais[[#This Row],[Razão código]],DespesasDiscriminadas[Data da fatura:],\">=\"&F$3,DespesasDiscriminadas[Data da fatura:],\"<=\"&F$4)+SUMIFS(Outros[Verifique quantidade],Outros[Razão código],ResumoDeDespesasMensais[[#This Row],[Razão código]],Outros[Solicitação de seleção de data iniciada],\">=\"&DATEVALUE(\" 1 \"&ResumoDeDespesasMensais[[#Headers],[Março]]&_ANO),Outros[Solicitação de seleção de data iniciada],\"<=\"&F$4)","v":{"v":0,"d":"R$ 0.00"}},{"$f":"SUMIFS(DespesasDiscriminadas[Verifique quantidade],DespesasDiscriminadas[Razão código],ResumoDeDespesasMensais[[#This Row],[Razão código]],DespesasDiscriminadas[Data da fatura:],\">=\"&G$3,DespesasDiscriminadas[Data da fatura:],\"<=\"&G$4)+SUMIFS(Outros[Verifique quantidade],Outros[Razão código],ResumoDeDespesasMensais[[#This Row],[Razão código]],Outros[Solicitação de seleção de data iniciada],\">=\"&DATEVALUE(\" 1 \"&ResumoDeDespesasMensais[[#Headers],[Abr]]&_ANO),Outros[Solicitação de seleção de data iniciada],\"<=\"&G$4)","v":{"v":0,"d":"R$ 0.00"}},{"$f":"SUMIFS(DespesasDiscriminadas[Verifique quantidade],DespesasDiscriminadas[Razão código],ResumoDeDespesasMensais[[#This Row],[Razão código]],DespesasDiscriminadas[Data da fatura:],\">=\"&H$3,DespesasDiscriminadas[Data da fatura:],\"<=\"&H$4)+SUMIFS(Outros[Verifique quantidade],Outros[Razão código],ResumoDeDespesasMensais[[#This Row],[Razão código]],Outros[Solicitação de seleção de data iniciada],\">=\"&DATEVALUE(\" 1 \"&ResumoDeDespesasMensais[[#Headers],[Maio]]&_ANO),Outros[Solicitação de seleção de data iniciada],\"<=\"&H$4)","v":{"v":0,"d":"R$ 0.00"}},{"$f":"SUMIFS(DespesasDiscriminadas[Verifique quantidade],DespesasDiscriminadas[Razão código],ResumoDeDespesasMensais[[#This Row],[Razão código]],DespesasDiscriminadas[Data da fatura:],\">=\"&I$3,DespesasDiscriminadas[Data da fatura:],\"<=\"&I$4)+SUMIFS(Outros[Verifique quantidade],Outros[Razão código],ResumoDeDespesasMensais[[#This Row],[Razão código]],Outros[Solicitação de seleção de data iniciada],\">=\"&DATEVALUE(\" 1 \"&ResumoDeDespesasMensais[[#Headers],[Jun]]&_ANO),Outros[Solicitação de seleção de data iniciada],\"<=\"&I$4)","v":{"v":0,"d":"R$ 0.00"}},{"$f":"SUMIFS(DespesasDiscriminadas[Verifique quantidade],DespesasDiscriminadas[Razão código],ResumoDeDespesasMensais[[#This Row],[Razão código]],DespesasDiscriminadas[Data da fatura:],\">=\"&J$3,DespesasDiscriminadas[Data da fatura:],\"<=\"&J$4)+SUMIFS(Outros[Verifique quantidade],Outros[Razão código],ResumoDeDespesasMensais[[#This Row],[Razão código]],Outros[Solicitação de seleção de data iniciada],\">=\"&DATEVALUE(\" 1 \"&ResumoDeDespesasMensais[[#Headers],[Julho]]&_ANO),Outros[Solicitação de seleção de data iniciada],\"<=\"&J$4)","v":{"v":0,"d":"R$ 0.00"}},{"$f":"SUMIFS(DespesasDiscriminadas[Verifique quantidade],DespesasDiscriminadas[Razão código],ResumoDeDespesasMensais[[#This Row],[Razão código]],DespesasDiscriminadas[Data da fatura:],\">=\"&K$3,DespesasDiscriminadas[Data da fatura:],\"<=\"&K$4)+SUMIFS(Outros[Verifique quantidade],Outros[Razão código],ResumoDeDespesasMensais[[#This Row],[Razão código]],Outros[Solicitação de seleção de data iniciada],\">=\"&DATEVALUE(\" 1 \"&ResumoDeDespesasMensais[[#Headers],[Agosto]]&_ANO),Outros[Solicitação de seleção de data iniciada],\"<=\"&K$4)","v":{"v":0,"d":"R$ 0.00"}},{"$f":"SUMIFS(DespesasDiscriminadas[Verifique quantidade],DespesasDiscriminadas[Razão código],ResumoDeDespesasMensais[[#This Row],[Razão código]],DespesasDiscriminadas[Data da fatura:],\">=\"&L$3,DespesasDiscriminadas[Data da fatura:],\"<=\"&L$4)+SUMIFS(Outros[Verifique quantidade],Outros[Razão código],ResumoDeDespesasMensais[[#This Row],[Razão código]],Outros[Solicitação de seleção de data iniciada],\">=\"&DATEVALUE(\" 1 \"&ResumoDeDespesasMensais[[#Headers],[Setembro]]&_ANO),Outros[Solicitação de seleção de data iniciada],\"<=\"&L$4)","v":{"v":0,"d":"R$ 0.00"}},{"$f":"SUMIFS(DespesasDiscriminadas[Verifique quantidade],DespesasDiscriminadas[Razão código],ResumoDeDespesasMensais[[#This Row],[Razão código]],DespesasDiscriminadas[Data da fatura:],\">=\"&M$3,DespesasDiscriminadas[Data da fatura:],\"<=\"&M$4)+SUMIFS(Outros[Verifique quantidade],Outros[Razão código],ResumoDeDespesasMensais[[#This Row],[Razão código]],Outros[Solicitação de seleção de data iniciada],\">=\"&DATEVALUE(\" 1 \"&ResumoDeDespesasMensais[[#Headers],[Outubro]]&_ANO),Outros[Solicitação de seleção de data iniciada],\"<=\"&M$4)","v":{"v":0,"d":"R$ 0.00"}},{"$f":"SUMIFS(DespesasDiscriminadas[Verifique quantidade],DespesasDiscriminadas[Razão código],ResumoDeDespesasMensais[[#This Row],[Razão código]],DespesasDiscriminadas[Data da fatura:],\">=\"&N$3,DespesasDiscriminadas[Data da fatura:],\"<=\"&N$4)+SUMIFS(Outros[Verifique quantidade],Outros[Razão código],ResumoDeDespesasMensais[[#This Row],[Razão código]],Outros[Solicitação de seleção de data iniciada],\">=\"&DATEVALUE(\" 1 \"&ResumoDeDespesasMensais[[#Headers],[Novembro]]&_ANO),Outros[Solicitação de seleção de data iniciada],\"<=\"&N$4)","v":{"v":0,"d":"R$ 0.00"}},{"$f":"SUMIFS(DespesasDiscriminadas[Verifique quantidade],DespesasDiscriminadas[Razão código],ResumoDeDespesasMensais[[#This Row],[Razão código]],DespesasDiscriminadas[Data da fatura:],\">=\"&O$3,DespesasDiscriminadas[Data da fatura:],\"<=\"&O$4)+SUMIFS(Outros[Verifique quantidade],Outros[Razão código],ResumoDeDespesasMensais[[#This Row],[Razão código]],Outros[Solicitação de seleção de data iniciada],\">=\"&DATEVALUE(\" 1 \"&ResumoDeDespesasMensais[[#Headers],[Dezembro]]&_ANO),Outros[Solicitação de seleção de data iniciada],\"<=\"&O$4)","v":{"v":0,"d":"R$ 0.00"}},{"$f":"SUM(ResumoDeDespesasMensais[[#This Row],[Janeiro]:[Dezembro]])","v":{"v":0,"d":"R$ 0.00"}}]
[null,3000,"Impressoras",{"$f":"SUMIFS(DespesasDiscriminadas[Verifique quantidade],DespesasDiscriminadas[Razão código],ResumoDeDespesasMensais[[#This Row],[Razão código]],DespesasDiscriminadas[Data da fatura:],\">=\"&D$3,DespesasDiscriminadas[Data da fatura:],\"<=\"&D$4)+SUMIFS(Outros[Verifique quantidade],Outros[Razão código],ResumoDeDespesasMensais[[#This Row],[Razão código]],Outros[Solicitação de seleção de data iniciada],\">=\"&DATEVALUE(\" 1 \"&ResumoDeDespesasMensais[[#Headers],[Janeiro]]&_ANO),Outros[Solicitação de seleção de data iniciada],\"<=\"&D$4)","v":{"v":0,"d":"R$ 0.00"}},{"$f":"SUMIFS(DespesasDiscriminadas[Verifique quantidade],DespesasDiscriminadas[Razão código],ResumoDeDespesasMensais[[#This Row],[Razão código]],DespesasDiscriminadas[Data da fatura:],\">=\"&E$3,DespesasDiscriminadas[Data da fatura:],\"<=\"&E$4)+SUMIFS(Outros[Verifique quantidade],Outros[Razão código],ResumoDeDespesasMensais[[#This Row],[Razão código]],Outros[Solicitação de seleção de data iniciada],\">=\"&DATEVALUE(\" 1 \"&ResumoDeDespesasMensais[[#Headers],[Fevereiro]]&_ANO),Outros[Solicitação de seleção de data iniciada],\"<=\"&E$4)","v":{"v":0,"d":"R$ 0.00"}},{"$f":"SUMIFS(DespesasDiscriminadas[Verifique quantidade],DespesasDiscriminadas[Razão código],ResumoDeDespesasMensais[[#This Row],[Razão código]],DespesasDiscriminadas[Data da fatura:],\">=\"&F$3,DespesasDiscriminadas[Data da fatura:],\"<=\"&F$4)+SUMIFS(Outros[Verifique quantidade],Outros[Razão código],ResumoDeDespesasMensais[[#This Row],[Razão código]],Outros[Solicitação de seleção de data iniciada],\">=\"&DATEVALUE(\" 1 \"&ResumoDeDespesasMensais[[#Headers],[Março]]&_ANO),Outros[Solicitação de seleção de data iniciada],\"<=\"&F$4)","v":{"v":0,"d":"R$ 0.00"}},{"$f":"SUMIFS(DespesasDiscriminadas[Verifique quantidade],DespesasDiscriminadas[Razão código],ResumoDeDespesasMensais[[#This Row],[Razão código]],DespesasDiscriminadas[Data da fatura:],\">=\"&G$3,DespesasDiscriminadas[Data da fatura:],\"<=\"&G$4)+SUMIFS(Outros[Verifique quantidade],Outros[Razão código],ResumoDeDespesasMensais[[#This Row],[Razão código]],Outros[Solicitação de seleção de data iniciada],\">=\"&DATEVALUE(\" 1 \"&ResumoDeDespesasMensais[[#Headers],[Abr]]&_ANO),Outros[Solicitação de seleção de data iniciada],\"<=\"&G$4)","v":{"v":0,"d":"R$ 0.00"}},{"$f":"SUMIFS(DespesasDiscriminadas[Verifique quantidade],DespesasDiscriminadas[Razão código],ResumoDeDespesasMensais[[#This Row],[Razão código]],DespesasDiscriminadas[Data da fatura:],\">=\"&H$3,DespesasDiscriminadas[Data da fatura:],\"<=\"&H$4)+SUMIFS(Outros[Verifique quantidade],Outros[Razão código],ResumoDeDespesasMensais[[#This Row],[Razão código]],Outros[Solicitação de seleção de data iniciada],\">=\"&DATEVALUE(\" 1 \"&ResumoDeDespesasMensais[[#Headers],[Maio]]&_ANO),Outros[Solicitação de seleção de data iniciada],\"<=\"&H$4)","v":{"v":0,"d":"R$ 0.00"}},{"$f":"SUMIFS(DespesasDiscriminadas[Verifique quantidade],DespesasDiscriminadas[Razão código],ResumoDeDespesasMensais[[#This Row],[Razão código]],DespesasDiscriminadas[Data da fatura:],\">=\"&I$3,DespesasDiscriminadas[Data da fatura:],\"<=\"&I$4)+SUMIFS(Outros[Verifique quantidade],Outros[Razão código],ResumoDeDespesasMensais[[#This Row],[Razão código]],Outros[Solicitação de seleção de data iniciada],\">=\"&DATEVALUE(\" 1 \"&ResumoDeDespesasMensais[[#Headers],[Jun]]&_ANO),Outros[Solicitação de seleção de data iniciada],\"<=\"&I$4)","v":{"v":0,"d":"R$ 0.00"}},{"$f":"SUMIFS(DespesasDiscriminadas[Verifique quantidade],DespesasDiscriminadas[Razão código],ResumoDeDespesasMensais[[#This Row],[Razão código]],DespesasDiscriminadas[Data da fatura:],\">=\"&J$3,DespesasDiscriminadas[Data da fatura:],\"<=\"&J$4)+SUMIFS(Outros[Verifique quantidade],Outros[Razão código],ResumoDeDespesasMensais[[#This Row],[Razão código]],Outros[Solicitação de seleção de data iniciada],\">=\"&DATEVALUE(\" 1 \"&ResumoDeDespesasMensais[[#Headers],[Julho]]&_ANO),Outros[Solicitação de seleção de data iniciada],\"<=\"&J$4)","v":{"v":0,"d":"R$ 0.00"}},{"$f":"SUMIFS(DespesasDiscriminadas[Verifique quantidade],DespesasDiscriminadas[Razão código],ResumoDeDespesasMensais[[#This Row],[Razão código]],DespesasDiscriminadas[Data da fatura:],\">=\"&K$3,DespesasDiscriminadas[Data da fatura:],\"<=\"&K$4)+SUMIFS(Outros[Verifique quantidade],Outros[Razão código],ResumoDeDespesasMensais[[#This Row],[Razão código]],Outros[Solicitação de seleção de data iniciada],\">=\"&DATEVALUE(\" 1 \"&ResumoDeDespesasMensais[[#Headers],[Agosto]]&_ANO),Outros[Solicitação de seleção de data iniciada],\"<=\"&K$4)","v":{"v":0,"d":"R$ 0.00"}},{"$f":"SUMIFS(DespesasDiscriminadas[Verifique quantidade],DespesasDiscriminadas[Razão código],ResumoDeDespesasMensais[[#This Row],[Razão código]],DespesasDiscriminadas[Data da fatura:],\">=\"&L$3,DespesasDiscriminadas[Data da fatura:],\"<=\"&L$4)+SUMIFS(Outros[Verifique quantidade],Outros[Razão código],ResumoDeDespesasMensais[[#This Row],[Razão código]],Outros[Solicitação de seleção de data iniciada],\">=\"&DATEVALUE(\" 1 \"&ResumoDeDespesasMensais[[#Headers],[Setembro]]&_ANO),Outros[Solicitação de seleção de data iniciada],\"<=\"&L$4)","v":{"v":0,"d":"R$ 0.00"}},{"$f":"SUMIFS(DespesasDiscriminadas[Verifique quantidade],DespesasDiscriminadas[Razão código],ResumoDeDespesasMensais[[#This Row],[Razão código]],DespesasDiscriminadas[Data da fatura:],\">=\"&M$3,DespesasDiscriminadas[Data da fatura:],\"<=\"&M$4)+SUMIFS(Outros[Verifique quantidade],Outros[Razão código],ResumoDeDespesasMensais[[#This Row],[Razão código]],Outros[Solicitação de seleção de data iniciada],\">=\"&DATEVALUE(\" 1 \"&ResumoDeDespesasMensais[[#Headers],[Outubro]]&_ANO),Outros[Solicitação de seleção de data iniciada],\"<=\"&M$4)","v":{"v":0,"d":"R$ 0.00"}},{"$f":"SUMIFS(DespesasDiscriminadas[Verifique quantidade],DespesasDiscriminadas[Razão código],ResumoDeDespesasMensais[[#This Row],[Razão código]],DespesasDiscriminadas[Data da fatura:],\">=\"&N$3,DespesasDiscriminadas[Data da fatura:],\"<=\"&N$4)+SUMIFS(Outros[Verifique quantidade],Outros[Razão código],ResumoDeDespesasMensais[[#This Row],[Razão código]],Outros[Solicitação de seleção de data iniciada],\">=\"&DATEVALUE(\" 1 \"&ResumoDeDespesasMensais[[#Headers],[Novembro]]&_ANO),Outros[Solicitação de seleção de data iniciada],\"<=\"&N$4)","v":{"v":0,"d":"R$ 0.00"}},{"$f":"SUMIFS(DespesasDiscriminadas[Verifique quantidade],DespesasDiscriminadas[Razão código],ResumoDeDespesasMensais[[#This Row],[Razão código]],DespesasDiscriminadas[Data da fatura:],\">=\"&O$3,DespesasDiscriminadas[Data da fatura:],\"<=\"&O$4)+SUMIFS(Outros[Verifique quantidade],Outros[Razão código],ResumoDeDespesasMensais[[#This Row],[Razão código]],Outros[Solicitação de seleção de data iniciada],\">=\"&DATEVALUE(\" 1 \"&ResumoDeDespesasMensais[[#Headers],[Dezembro]]&_ANO),Outros[Solicitação de seleção de data iniciada],\"<=\"&O$4)","v":{"v":0,"d":"R$ 0.00"}},{"$f":"SUM(ResumoDeDespesasMensais[[#This Row],[Janeiro]:[Dezembro]])","v":{"v":0,"d":"R$ 0.00"}}]
[null,4000,"Custos de servidor",{"$f":"SUMIFS(DespesasDiscriminadas[Verifique quantidade],DespesasDiscriminadas[Razão código],ResumoDeDespesasMensais[[#This Row],[Razão código]],DespesasDiscriminadas[Data da fatura:],\">=\"&D$3,DespesasDiscriminadas[Data da fatura:],\"<=\"&D$4)+SUMIFS(Outros[Verifique quantidade],Outros[Razão código],ResumoDeDespesasMensais[[#This Row],[Razão código]],Outros[Solicitação de seleção de data iniciada],\">=\"&DATEVALUE(\" 1 \"&ResumoDeDespesasMensais[[#Headers],[Janeiro]]&_ANO),Outros[Solicitação de seleção de data iniciada],\"<=\"&D$4)","v":{"v":0,"d":"R$ 0.00"}},{"$f":"SUMIFS(DespesasDiscriminadas[Verifique quantidade],DespesasDiscriminadas[Razão código],ResumoDeDespesasMensais[[#This Row],[Razão código]],DespesasDiscriminadas[Data da fatura:],\">=\"&E$3,DespesasDiscriminadas[Data da fatura:],\"<=\"&E$4)+SUMIFS(Outros[Verifique quantidade],Outros[Razão código],ResumoDeDespesasMensais[[#This Row],[Razão código]],Outros[Solicitação de seleção de data iniciada],\">=\"&DATEVALUE(\" 1 \"&ResumoDeDespesasMensais[[#Headers],[Fevereiro]]&_ANO),Outros[Solicitação de seleção de data iniciada],\"<=\"&E$4)","v":{"v":0,"d":"R$ 0.00"}},{"$f":"SUMIFS(DespesasDiscriminadas[Verifique quantidade],DespesasDiscriminadas[Razão código],ResumoDeDespesasMensais[[#This Row],[Razão código]],DespesasDiscriminadas[Data da fatura:],\">=\"&F$3,DespesasDiscriminadas[Data da fatura:],\"<=\"&F$4)+SUMIFS(Outros[Verifique quantidade],Outros[Razão código],ResumoDeDespesasMensais[[#This Row],[Razão código]],Outros[Solicitação de seleção de data iniciada],\">=\"&DATEVALUE(\" 1 \"&ResumoDeDespesasMensais[[#Headers],[Março]]&_ANO),Outros[Solicitação de seleção de data iniciada],\"<=\"&F$4)","v":{"v":0,"d":"R$ 0.00"}},{"$f":"SUMIFS(DespesasDiscriminadas[Verifique quantidade],DespesasDiscriminadas[Razão código],ResumoDeDespesasMensais[[#This Row],[Razão código]],DespesasDiscriminadas[Data da fatura:],\">=\"&G$3,DespesasDiscriminadas[Data da fatura:],\"<=\"&G$4)+SUMIFS(Outros[Verifique quantidade],Outros[Razão código],ResumoDeDespesasMensais[[#This Row],[Razão código]],Outros[Solicitação de seleção de data iniciada],\">=\"&DATEVALUE(\" 1 \"&ResumoDeDespesasMensais[[#Headers],[Abr]]&_ANO),Outros[Solicitação de seleção de data iniciada],\"<=\"&G$4)","v":{"v":0,"d":"R$ 0.00"}},{"$f":"SUMIFS(DespesasDiscriminadas[Verifique quantidade],DespesasDiscriminadas[Razão código],ResumoDeDespesasMensais[[#This Row],[Razão código]],DespesasDiscriminadas[Data da fatura:],\">=\"&H$3,DespesasDiscriminadas[Data da fatura:],\"<=\"&H$4)+SUMIFS(Outros[Verifique quantidade],Outros[Razão código],ResumoDeDespesasMensais[[#This Row],[Razão código]],Outros[Solicitação de seleção de data iniciada],\">=\"&DATEVALUE(\" 1 \"&ResumoDeDespesasMensais[[#Headers],[Maio]]&_ANO),Outros[Solicitação de seleção de data iniciada],\"<=\"&H$4)","v":{"v":0,"d":"R$ 0.00"}},{"$f":"SUMIFS(DespesasDiscriminadas[Verifique quantidade],DespesasDiscriminadas[Razão código],ResumoDeDespesasMensais[[#This Row],[Razão código]],DespesasDiscriminadas[Data da fatura:],\">=\"&I$3,DespesasDiscriminadas[Data da fatura:],\"<=\"&I$4)+SUMIFS(Outros[Verifique quantidade],Outros[Razão código],ResumoDeDespesasMensais[[#This Row],[Razão código]],Outros[Solicitação de seleção de data iniciada],\">=\"&DATEVALUE(\" 1 \"&ResumoDeDespesasMensais[[#Headers],[Jun]]&_ANO),Outros[Solicitação de seleção de data iniciada],\"<=\"&I$4)","v":{"v":0,"d":"R$ 0.00"}},{"$f":"SUMIFS(DespesasDiscriminadas[Verifique quantidade],DespesasDiscriminadas[Razão código],ResumoDeDespesasMensais[[#This Row],[Razão código]],DespesasDiscriminadas[Data da fatura:],\">=\"&J$3,DespesasDiscriminadas[Data da fatura:],\"<=\"&J$4)+SUMIFS(Outros[Verifique quantidade],Outros[Razão código],ResumoDeDespesasMensais[[#This Row],[Razão código]],Outros[Solicitação de seleção de data iniciada],\">=\"&DATEVALUE(\" 1 \"&ResumoDeDespesasMensais[[#Headers],[Julho]]&_ANO),Outros[Solicitação de seleção de data iniciada],\"<=\"&J$4)","v":{"v":0,"d":"R$ 0.00"}},{"$f":"SUMIFS(DespesasDiscriminadas[Verifique quantidade],DespesasDiscriminadas[Razão código],ResumoDeDespesasMensais[[#This Row],[Razão código]],DespesasDiscriminadas[Data da fatura:],\">=\"&K$3,DespesasDiscriminadas[Data da fatura:],\"<=\"&K$4)+SUMIFS(Outros[Verifique quantidade],Outros[Razão código],ResumoDeDespesasMensais[[#This Row],[Razão código]],Outros[Solicitação de seleção de data iniciada],\">=\"&DATEVALUE(\" 1 \"&ResumoDeDespesasMensais[[#Headers],[Agosto]]&_ANO),Outros[Solicitação de seleção de data iniciada],\"<=\"&K$4)","v":{"v":0,"d":"R$ 0.00"}},{"$f":"SUMIFS(DespesasDiscriminadas[Verifique quantidade],DespesasDiscriminadas[Razão código],ResumoDeDespesasMensais[[#This Row],[Razão código]],DespesasDiscriminadas[Data da fatura:],\">=\"&L$3,DespesasDiscriminadas[Data da fatura:],\"<=\"&L$4)+SUMIFS(Outros[Verifique quantidade],Outros[Razão código],ResumoDeDespesasMensais[[#This Row],[Razão código]],Outros[Solicitação de seleção de data iniciada],\">=\"&DATEVALUE(\" 1 \"&ResumoDeDespesasMensais[[#Headers],[Setembro]]&_ANO),Outros[Solicitação de seleção de data iniciada],\"<=\"&L$4)","v":{"v":0,"d":"R$ 0.00"}},{"$f":"SUMIFS(DespesasDiscriminadas[Verifique quantidade],DespesasDiscriminadas[Razão código],ResumoDeDespesasMensais[[#This Row],[Razão código]],DespesasDiscriminadas[Data da fatura:],\">=\"&M$3,DespesasDiscriminadas[Data da fatura:],\"<=\"&M$4)+SUMIFS(Outros[Verifique quantidade],Outros[Razão código],ResumoDeDespesasMensais[[#This Row],[Razão código]],Outros[Solicitação de seleção de data iniciada],\">=\"&DATEVALUE(\" 1 \"&ResumoDeDespesasMensais[[#Headers],[Outubro]]&_ANO),Outros[Solicitação de seleção de data iniciada],\"<=\"&M$4)","v":{"v":0,"d":"R$ 0.00"}},{"$f":"SUMIFS(DespesasDiscriminadas[Verifique quantidade],DespesasDiscriminadas[Razão código],ResumoDeDespesasMensais[[#This Row],[Razão código]],DespesasDiscriminadas[Data da fatura:],\">=\"&N$3,DespesasDiscriminadas[Data da fatura:],\"<=\"&N$4)+SUMIFS(Outros[Verifique quantidade],Outros[Razão código],ResumoDeDespesasMensais[[#This Row],[Razão código]],Outros[Solicitação de seleção de data iniciada],\">=\"&DATEVALUE(\" 1 \"&ResumoDeDespesasMensais[[#Headers],[Novembro]]&_ANO),Outros[Solicitação de seleção de data iniciada],\"<=\"&N$4)","v":{"v":0,"d":"R$ 0.00"}},{"$f":"SUMIFS(DespesasDiscriminadas[Verifique quantidade],DespesasDiscriminadas[Razão código],ResumoDeDespesasMensais[[#This Row],[Razão código]],DespesasDiscriminadas[Data da fatura:],\">=\"&O$3,DespesasDiscriminadas[Data da fatura:],\"<=\"&O$4)+SUMIFS(Outros[Verifique quantidade],Outros[Razão código],ResumoDeDespesasMensais[[#This Row],[Razão código]],Outros[Solicitação de seleção de data iniciada],\">=\"&DATEVALUE(\" 1 \"&ResumoDeDespesasMensais[[#Headers],[Dezembro]]&_ANO),Outros[Solicitação de seleção de data iniciada],\"<=\"&O$4)","v":{"v":0,"d":"R$ 0.00"}},{"$f":"SUM(ResumoDeDespesasMensais[[#This Row],[Janeiro]:[Dezembro]])","v":{"v":0,"d":"R$ 0.00"}}]
[null,5000,"Suprimentos",{"$f":"SUMIFS(DespesasDiscriminadas[Verifique quantidade],DespesasDiscriminadas[Razão código],ResumoDeDespesasMensais[[#This Row],[Razão código]],DespesasDiscriminadas[Data da fatura:],\">=\"&D$3,DespesasDiscriminadas[Data da fatura:],\"<=\"&D$4)+SUMIFS(Outros[Verifique quantidade],Outros[Razão código],ResumoDeDespesasMensais[[#This Row],[Razão código]],Outros[Solicitação de seleção de data iniciada],\">=\"&DATEVALUE(\" 1 \"&ResumoDeDespesasMensais[[#Headers],[Janeiro]]&_ANO),Outros[Solicitação de seleção de data iniciada],\"<=\"&D$4)","v":{"v":0,"d":"R$ 0.00"}},{"$f":"SUMIFS(DespesasDiscriminadas[Verifique quantidade],DespesasDiscriminadas[Razão código],ResumoDeDespesasMensais[[#This Row],[Razão código]],DespesasDiscriminadas[Data da fatura:],\">=\"&E$3,DespesasDiscriminadas[Data da fatura:],\"<=\"&E$4)+SUMIFS(Outros[Verifique quantidade],Outros[Razão código],ResumoDeDespesasMensais[[#This Row],[Razão código]],Outros[Solicitação de seleção de data iniciada],\">=\"&DATEVALUE(\" 1 \"&ResumoDeDespesasMensais[[#Headers],[Fevereiro]]&_ANO),Outros[Solicitação de seleção de data iniciada],\"<=\"&E$4)","v":{"v":0,"d":"R$ 0.00"}},{"$f":"SUMIFS(DespesasDiscriminadas[Verifique quantidade],DespesasDiscriminadas[Razão código],ResumoDeDespesasMensais[[#This Row],[Razão código]],DespesasDiscriminadas[Data da fatura:],\">=\"&F$3,DespesasDiscriminadas[Data da fatura:],\"<=\"&F$4)+SUMIFS(Outros[Verifique quantidade],Outros[Razão código],ResumoDeDespesasMensais[[#This Row],[Razão código]],Outros[Solicitação de seleção de data iniciada],\">=\"&DATEVALUE(\" 1 \"&ResumoDeDespesasMensais[[#Headers],[Março]]&_ANO),Outros[Solicitação de seleção de data iniciada],\"<=\"&F$4)","v":{"v":0,"d":"R$ 0.00"}},{"$f":"SUMIFS(DespesasDiscriminadas[Verifique quantidade],DespesasDiscriminadas[Razão código],ResumoDeDespesasMensais[[#This Row],[Razão código]],DespesasDiscriminadas[Data da fatura:],\">=\"&G$3,DespesasDiscriminadas[Data da fatura:],\"<=\"&G$4)+SUMIFS(Outros[Verifique quantidade],Outros[Razão código],ResumoDeDespesasMensais[[#This Row],[Razão código]],Outros[Solicitação de seleção de data iniciada],\">=\"&DATEVALUE(\" 1 \"&ResumoDeDespesasMensais[[#Headers],[Abr]]&_ANO),Outros[Solicitação de seleção de data iniciada],\"<=\"&G$4)","v":{"v":0,"d":"R$ 0.00"}},{"$f":"SUMIFS(DespesasDiscriminadas[Verifique quantidade],DespesasDiscriminadas[Razão código],ResumoDeDespesasMensais[[#This Row],[Razão código]],DespesasDiscriminadas[Data da fatura:],\">=\"&H$3,DespesasDiscriminadas[Data da fatura:],\"<=\"&H$4)+SUMIFS(Outros[Verifique quantidade],Outros[Razão código],ResumoDeDespesasMensais[[#This Row],[Razão código]],Outros[Solicitação de seleção de data iniciada],\">=\"&DATEVALUE(\" 1 \"&ResumoDeDespesasMensais[[#Headers],[Maio]]&_ANO),Outros[Solicitação de seleção de data iniciada],\"<=\"&H$4)","v":{"v":0,"d":"R$ 0.00"}},{"$f":"SUMIFS(DespesasDiscriminadas[Verifique quantidade],DespesasDiscriminadas[Razão código],ResumoDeDespesasMensais[[#This Row],[Razão código]],DespesasDiscriminadas[Data da fatura:],\">=\"&I$3,DespesasDiscriminadas[Data da fatura:],\"<=\"&I$4)+SUMIFS(Outros[Verifique quantidade],Outros[Razão código],ResumoDeDespesasMensais[[#This Row],[Razão código]],Outros[Solicitação de seleção de data iniciada],\">=\"&DATEVALUE(\" 1 \"&ResumoDeDespesasMensais[[#Headers],[Jun]]&_ANO),Outros[Solicitação de seleção de data iniciada],\"<=\"&I$4)","v":{"v":0,"d":"R$ 0.00"}},{"$f":"SUMIFS(DespesasDiscriminadas[Verifique quantidade],DespesasDiscriminadas[Razão código],ResumoDeDespesasMensais[[#This Row],[Razão código]],DespesasDiscriminadas[Data da fatura:],\">=\"&J$3,DespesasDiscriminadas[Data da fatura:],\"<=\"&J$4)+SUMIFS(Outros[Verifique quantidade],Outros[Razão código],ResumoDeDespesasMensais[[#This Row],[Razão código]],Outros[Solicitação de seleção de data iniciada],\">=\"&DATEVALUE(\" 1 \"&ResumoDeDespesasMensais[[#Headers],[Julho]]&_ANO),Outros[Solicitação de seleção de data iniciada],\"<=\"&J$4)","v":{"v":0,"d":"R$ 0.00"}},{"$f":"SUMIFS(DespesasDiscriminadas[Verifique quantidade],DespesasDiscriminadas[Razão código],ResumoDeDespesasMensais[[#This Row],[Razão código]],DespesasDiscriminadas[Data da fatura:],\">=\"&K$3,DespesasDiscriminadas[Data da fatura:],\"<=\"&K$4)+SUMIFS(Outros[Verifique quantidade],Outros[Razão código],ResumoDeDespesasMensais[[#This Row],[Razão código]],Outros[Solicitação de seleção de data iniciada],\">=\"&DATEVALUE(\" 1 \"&ResumoDeDespesasMensais[[#Headers],[Agosto]]&_ANO),Outros[Solicitação de seleção de data iniciada],\"<=\"&K$4)","v":{"v":0,"d":"R$ 0.00"}},{"$f":"SUMIFS(DespesasDiscriminadas[Verifique quantidade],DespesasDiscriminadas[Razão código],ResumoDeDespesasMensais[[#This Row],[Razão código]],DespesasDiscriminadas[Data da fatura:],\">=\"&L$3,DespesasDiscriminadas[Data da fatura:],\"<=\"&L$4)+SUMIFS(Outros[Verifique quantidade],Outros[Razão código],ResumoDeDespesasMensais[[#This Row],[Razão código]],Outros[Solicitação de seleção de data iniciada],\">=\"&DATEVALUE(\" 1 \"&ResumoDeDespesasMensais[[#Headers],[Setembro]]&_ANO),Outros[Solicitação de seleção de data iniciada],\"<=\"&L$4)","v":{"v":0,"d":"R$ 0.00"}},{"$f":"SUMIFS(DespesasDiscriminadas[Verifique quantidade],DespesasDiscriminadas[Razão código],ResumoDeDespesasMensais[[#This Row],[Razão código]],DespesasDiscriminadas[Data da fatura:],\">=\"&M$3,DespesasDiscriminadas[Data da fatura:],\"<=\"&M$4)+SUMIFS(Outros[Verifique quantidade],Outros[Razão código],ResumoDeDespesasMensais[[#This Row],[Razão código]],Outros[Solicitação de seleção de data iniciada],\">=\"&DATEVALUE(\" 1 \"&ResumoDeDespesasMensais[[#Headers],[Outubro]]&_ANO),Outros[Solicitação de seleção de data iniciada],\"<=\"&M$4)","v":{"v":0,"d":"R$ 0.00"}},{"$f":"SUMIFS(DespesasDiscriminadas[Verifique quantidade],DespesasDiscriminadas[Razão código],ResumoDeDespesasMensais[[#This Row],[Razão código]],DespesasDiscriminadas[Data da fatura:],\">=\"&N$3,DespesasDiscriminadas[Data da fatura:],\"<=\"&N$4)+SUMIFS(Outros[Verifique quantidade],Outros[Razão código],ResumoDeDespesasMensais[[#This Row],[Razão código]],Outros[Solicitação de seleção de data iniciada],\">=\"&DATEVALUE(\" 1 \"&ResumoDeDespesasMensais[[#Headers],[Novembro]]&_ANO),Outros[Solicitação de seleção de data iniciada],\"<=\"&N$4)","v":{"v":0,"d":"R$ 0.00"}},{"$f":"SUMIFS(DespesasDiscriminadas[Verifique quantidade],DespesasDiscriminadas[Razão código],ResumoDeDespesasMensais[[#This Row],[Razão código]],DespesasDiscriminadas[Data da fatura:],\">=\"&O$3,DespesasDiscriminadas[Data da fatura:],\"<=\"&O$4)+SUMIFS(Outros[Verifique quantidade],Outros[Razão código],ResumoDeDespesasMensais[[#This Row],[Razão código]],Outros[Solicitação de seleção de data iniciada],\">=\"&DATEVALUE(\" 1 \"&ResumoDeDespesasMensais[[#Headers],[Dezembro]]&_ANO),Outros[Solicitação de seleção de data iniciada],\"<=\"&O$4)","v":{"v":0,"d":"R$ 0.00"}},{"$f":"SUM(ResumoDeDespesasMensais[[#This Row],[Janeiro]:[Dezembro]])","v":{"v":0,"d":"R$ 0.00"}}]
[null,6000,"Despesas de cliente",{"$f":"SUMIFS(DespesasDiscriminadas[Verifique quantidade],DespesasDiscriminadas[Razão código],ResumoDeDespesasMensais[[#This Row],[Razão código]],DespesasDiscriminadas[Data da fatura:],\">=\"&D$3,DespesasDiscriminadas[Data da fatura:],\"<=\"&D$4)+SUMIFS(Outros[Verifique quantidade],Outros[Razão código],ResumoDeDespesasMensais[[#This Row],[Razão código]],Outros[Solicitação de seleção de data iniciada],\">=\"&DATEVALUE(\" 1 \"&ResumoDeDespesasMensais[[#Headers],[Janeiro]]&_ANO),Outros[Solicitação de seleção de data iniciada],\"<=\"&D$4)","v":{"v":0,"d":"R$ 0.00"}},{"$f":"SUMIFS(DespesasDiscriminadas[Verifique quantidade],DespesasDiscriminadas[Razão código],ResumoDeDespesasMensais[[#This Row],[Razão código]],DespesasDiscriminadas[Data da fatura:],\">=\"&E$3,DespesasDiscriminadas[Data da fatura:],\"<=\"&E$4)+SUMIFS(Outros[Verifique quantidade],Outros[Razão código],ResumoDeDespesasMensais[[#This Row],[Razão código]],Outros[Solicitação de seleção de data iniciada],\">=\"&DATEVALUE(\" 1 \"&ResumoDeDespesasMensais[[#Headers],[Fevereiro]]&_ANO),Outros[Solicitação de seleção de data iniciada],\"<=\"&E$4)","v":{"v":0,"d":"R$ 0.00"}},{"$f":"SUMIFS(DespesasDiscriminadas[Verifique quantidade],DespesasDiscriminadas[Razão código],ResumoDeDespesasMensais[[#This Row],[Razão código]],DespesasDiscriminadas[Data da fatura:],\">=\"&F$3,DespesasDiscriminadas[Data da fatura:],\"<=\"&F$4)+SUMIFS(Outros[Verifique quantidade],Outros[Razão código],ResumoDeDespesasMensais[[#This Row],[Razão código]],Outros[Solicitação de seleção de data iniciada],\">=\"&DATEVALUE(\" 1 \"&ResumoDeDespesasMensais[[#Headers],[Março]]&_ANO),Outros[Solicitação de seleção de data iniciada],\"<=\"&F$4)","v":{"v":0,"d":"R$ 0.00"}},{"$f":"SUMIFS(DespesasDiscriminadas[Verifique quantidade],DespesasDiscriminadas[Razão código],ResumoDeDespesasMensais[[#This Row],[Razão código]],DespesasDiscriminadas[Data da fatura:],\">=\"&G$3,DespesasDiscriminadas[Data da fatura:],\"<=\"&G$4)+SUMIFS(Outros[Verifique quantidade],Outros[Razão código],ResumoDeDespesasMensais[[#This Row],[Razão código]],Outros[Solicitação de seleção de data iniciada],\">=\"&DATEVALUE(\" 1 \"&ResumoDeDespesasMensais[[#Headers],[Abr]]&_ANO),Outros[Solicitação de seleção de data iniciada],\"<=\"&G$4)","v":{"v":0,"d":"R$ 0.00"}},{"$f":"SUMIFS(DespesasDiscriminadas[Verifique quantidade],DespesasDiscriminadas[Razão código],ResumoDeDespesasMensais[[#This Row],[Razão código]],DespesasDiscriminadas[Data da fatura:],\">=\"&H$3,DespesasDiscriminadas[Data da fatura:],\"<=\"&H$4)+SUMIFS(Outros[Verifique quantidade],Outros[Razão código],ResumoDeDespesasMensais[[#This Row],[Razão código]],Outros[Solicitação de seleção de data iniciada],\">=\"&DATEVALUE(\" 1 \"&ResumoDeDespesasMensais[[#Headers],[Maio]]&_ANO),Outros[Solicitação de seleção de data iniciada],\"<=\"&H$4)","v":{"v":0,"d":"R$ 0.00"}},{"$f":"SUMIFS(DespesasDiscriminadas[Verifique quantidade],DespesasDiscriminadas[Razão código],ResumoDeDespesasMensais[[#This Row],[Razão código]],DespesasDiscriminadas[Data da fatura:],\">=\"&I$3,DespesasDiscriminadas[Data da fatura:],\"<=\"&I$4)+SUMIFS(Outros[Verifique quantidade],Outros[Razão código],ResumoDeDespesasMensais[[#This Row],[Razão código]],Outros[Solicitação de seleção de data iniciada],\">=\"&DATEVALUE(\" 1 \"&ResumoDeDespesasMensais[[#Headers],[Jun]]&_ANO),Outros[Solicitação de seleção de data iniciada],\"<=\"&I$4)","v":{"v":0,"d":"R$ 0.00"}},{"$f":"SUMIFS(DespesasDiscriminadas[Verifique quantidade],DespesasDiscriminadas[Razão código],ResumoDeDespesasMensais[[#This Row],[Razão código]],DespesasDiscriminadas[Data da fatura:],\">=\"&J$3,DespesasDiscriminadas[Data da fatura:],\"<=\"&J$4)+SUMIFS(Outros[Verifique quantidade],Outros[Razão código],ResumoDeDespesasMensais[[#This Row],[Razão código]],Outros[Solicitação de seleção de data iniciada],\">=\"&DATEVALUE(\" 1 \"&ResumoDeDespesasMensais[[#Headers],[Julho]]&_ANO),Outros[Solicitação de seleção de data iniciada],\"<=\"&J$4)","v":{"v":0,"d":"R$ 0.00"}},{"$f":"SUMIFS(DespesasDiscriminadas[Verifique quantidade],DespesasDiscriminadas[Razão código],ResumoDeDespesasMensais[[#This Row],[Razão código]],DespesasDiscriminadas[Data da fatura:],\">=\"&K$3,DespesasDiscriminadas[Data da fatura:],\"<=\"&K$4)+SUMIFS(Outros[Verifique quantidade],Outros[Razão código],ResumoDeDespesasMensais[[#This Row],[Razão código]],Outros[Solicitação de seleção de data iniciada],\">=\"&DATEVALUE(\" 1 \"&ResumoDeDespesasMensais[[#Headers],[Agosto]]&_ANO),Outros[Solicitação de seleção de data iniciada],\"<=\"&K$4)","v":{"v":0,"d":"R$ 0.00"}},{"$f":"SUMIFS(DespesasDiscriminadas[Verifique quantidade],DespesasDiscriminadas[Razão código],ResumoDeDespesasMensais[[#This Row],[Razão código]],DespesasDiscriminadas[Data da fatura:],\">=\"&L$3,DespesasDiscriminadas[Data da fatura:],\"<=\"&L$4)+SUMIFS(Outros[Verifique quantidade],Outros[Razão código],ResumoDeDespesasMensais[[#This Row],[Razão código]],Outros[Solicitação de seleção de data iniciada],\">=\"&DATEVALUE(\" 1 \"&ResumoDeDespesasMensais[[#Headers],[Setembro]]&_ANO),Outros[Solicitação de seleção de data iniciada],\"<=\"&L$4)","v":{"v":0,"d":"R$ 0.00"}},{"$f":"SUMIFS(DespesasDiscriminadas[Verifique quantidade],DespesasDiscriminadas[Razão código],ResumoDeDespesasMensais[[#This Row],[Razão código]],DespesasDiscriminadas[Data da fatura:],\">=\"&M$3,DespesasDiscriminadas[Data da fatura:],\"<=\"&M$4)+SUMIFS(Outros[Verifique quantidade],Outros[Razão código],ResumoDeDespesasMensais[[#This Row],[Razão código]],Outros[Solicitação de seleção de data iniciada],\">=\"&DATEVALUE(\" 1 \"&ResumoDeDespesasMensais[[#Headers],[Outubro]]&_ANO),Outros[Solicitação de seleção de data iniciada],\"<=\"&M$4)","v":{"v":0,"d":"R$ 0.00"}},{"$f":"SUMIFS(DespesasDiscriminadas[Verifique quantidade],DespesasDiscriminadas[Razão código],ResumoDeDespesasMensais[[#This Row],[Razão código]],DespesasDiscriminadas[Data da fatura:],\">=\"&N$3,DespesasDiscriminadas[Data da fatura:],\"<=\"&N$4)+SUMIFS(Outros[Verifique quantidade],Outros[Razão código],ResumoDeDespesasMensais[[#This Row],[Razão código]],Outros[Solicitação de seleção de data iniciada],\">=\"&DATEVALUE(\" 1 \"&ResumoDeDespesasMensais[[#Headers],[Novembro]]&_ANO),Outros[Solicitação de seleção de data iniciada],\"<=\"&N$4)","v":{"v":0,"d":"R$ 0.00"}},{"$f":"SUMIFS(DespesasDiscriminadas[Verifique quantidade],DespesasDiscriminadas[Razão código],ResumoDeDespesasMensais[[#This Row],[Razão código]],DespesasDiscriminadas[Data da fatura:],\">=\"&O$3,DespesasDiscriminadas[Data da fatura:],\"<=\"&O$4)+SUMIFS(Outros[Verifique quantidade],Outros[Razão código],ResumoDeDespesasMensais[[#This Row],[Razão código]],Outros[Solicitação de seleção de data iniciada],\">=\"&DATEVALUE(\" 1 \"&ResumoDeDespesasMensais[[#Headers],[Dezembro]]&_ANO),Outros[Solicitação de seleção de data iniciada],\"<=\"&O$4)","v":{"v":0,"d":"R$ 0.00"}},{"$f":"SUM(ResumoDeDespesasMensais[[#This Row],[Janeiro]:[Dezembro]])","v":{"v":0,"d":"R$ 0.00"}}]
[null,7000,"Computadores",{"$f":"SUMIFS(DespesasDiscriminadas[Verifique quantidade],DespesasDiscriminadas[Razão código],ResumoDeDespesasMensais[[#This Row],[Razão código]],DespesasDiscriminadas[Data da fatura:],\">=\"&D$3,DespesasDiscriminadas[Data da fatura:],\"<=\"&D$4)+SUMIFS(Outros[Verifique quantidade],Outros[Razão código],ResumoDeDespesasMensais[[#This Row],[Razão código]],Outros[Solicitação de seleção de data iniciada],\">=\"&DATEVALUE(\" 1 \"&ResumoDeDespesasMensais[[#Headers],[Janeiro]]&_ANO),Outros[Solicitação de seleção de data iniciada],\"<=\"&D$4)","v":{"v":0,"d":"R$ 0.00"}},{"$f":"SUMIFS(DespesasDiscriminadas[Verifique quantidade],DespesasDiscriminadas[Razão código],ResumoDeDespesasMensais[[#This Row],[Razão código]],DespesasDiscriminadas[Data da fatura:],\">=\"&E$3,DespesasDiscriminadas[Data da fatura:],\"<=\"&E$4)+SUMIFS(Outros[Verifique quantidade],Outros[Razão código],ResumoDeDespesasMensais[[#This Row],[Razão código]],Outros[Solicitação de seleção de data iniciada],\">=\"&DATEVALUE(\" 1 \"&ResumoDeDespesasMensais[[#Headers],[Fevereiro]]&_ANO),Outros[Solicitação de seleção de data iniciada],\"<=\"&E$4)","v":{"v":0,"d":"R$ 0.00"}},{"$f":"SUMIFS(DespesasDiscriminadas[Verifique quantidade],DespesasDiscriminadas[Razão código],ResumoDeDespesasMensais[[#This Row],[Razão código]],DespesasDiscriminadas[Data da fatura:],\">=\"&F$3,DespesasDiscriminadas[Data da fatura:],\"<=\"&F$4)+SUMIFS(Outros[Verifique quantidade],Outros[Razão código],ResumoDeDespesasMensais[[#This Row],[Razão código]],Outros[Solicitação de seleção de data iniciada],\">=\"&DATEVALUE(\" 1 \"&ResumoDeDespesasMensais[[#Headers],[Março]]&_ANO),Outros[Solicitação de seleção de data iniciada],\"<=\"&F$4)","v":{"v":0,"d":"R$ 0.00"}},{"$f":"SUMIFS(DespesasDiscriminadas[Verifique quantidade],DespesasDiscriminadas[Razão código],ResumoDeDespesasMensais[[#This Row],[Razão código]],DespesasDiscriminadas[Data da fatura:],\">=\"&G$3,DespesasDiscriminadas[Data da fatura:],\"<=\"&G$4)+SUMIFS(Outros[Verifique quantidade],Outros[Razão código],ResumoDeDespesasMensais[[#This Row],[Razão código]],Outros[Solicitação de seleção de data iniciada],\">=\"&DATEVALUE(\" 1 \"&ResumoDeDespesasMensais[[#Headers],[Abr]]&_ANO),Outros[Solicitação de seleção de data iniciada],\"<=\"&G$4)","v":{"v":0,"d":"R$ 0.00"}},{"$f":"SUMIFS(DespesasDiscriminadas[Verifique quantidade],DespesasDiscriminadas[Razão código],ResumoDeDespesasMensais[[#This Row],[Razão código]],DespesasDiscriminadas[Data da fatura:],\">=\"&H$3,DespesasDiscriminadas[Data da fatura:],\"<=\"&H$4)+SUMIFS(Outros[Verifique quantidade],Outros[Razão código],ResumoDeDespesasMensais[[#This Row],[Razão código]],Outros[Solicitação de seleção de data iniciada],\">=\"&DATEVALUE(\" 1 \"&ResumoDeDespesasMensais[[#Headers],[Maio]]&_ANO),Outros[Solicitação de seleção de data iniciada],\"<=\"&H$4)","v":{"v":0,"d":"R$ 0.00"}},{"$f":"SUMIFS(DespesasDiscriminadas[Verifique quantidade],DespesasDiscriminadas[Razão código],ResumoDeDespesasMensais[[#This Row],[Razão código]],DespesasDiscriminadas[Data da fatura:],\">=\"&I$3,DespesasDiscriminadas[Data da fatura:],\"<=\"&I$4)+SUMIFS(Outros[Verifique quantidade],Outros[Razão código],ResumoDeDespesasMensais[[#This Row],[Razão código]],Outros[Solicitação de seleção de data iniciada],\">=\"&DATEVALUE(\" 1 \"&ResumoDeDespesasMensais[[#Headers],[Jun]]&_ANO),Outros[Solicitação de seleção de data iniciada],\"<=\"&I$4)","v":{"v":0,"d":"R$ 0.00"}},{"$f":"SUMIFS(DespesasDiscriminadas[Verifique quantidade],DespesasDiscriminadas[Razão código],ResumoDeDespesasMensais[[#This Row],[Razão código]],DespesasDiscriminadas[Data da fatura:],\">=\"&J$3,DespesasDiscriminadas[Data da fatura:],\"<=\"&J$4)+SUMIFS(Outros[Verifique quantidade],Outros[Razão código],ResumoDeDespesasMensais[[#This Row],[Razão código]],Outros[Solicitação de seleção de data iniciada],\">=\"&DATEVALUE(\" 1 \"&ResumoDeDespesasMensais[[#Headers],[Julho]]&_ANO),Outros[Solicitação de seleção de data iniciada],\"<=\"&J$4)","v":{"v":0,"d":"R$ 0.00"}},{"$f":"SUMIFS(DespesasDiscriminadas[Verifique quantidade],DespesasDiscriminadas[Razão código],ResumoDeDespesasMensais[[#This Row],[Razão código]],DespesasDiscriminadas[Data da fatura:],\">=\"&K$3,DespesasDiscriminadas[Data da fatura:],\"<=\"&K$4)+SUMIFS(Outros[Verifique quantidade],Outros[Razão código],ResumoDeDespesasMensais[[#This Row],[Razão código]],Outros[Solicitação de seleção de data iniciada],\">=\"&DATEVALUE(\" 1 \"&ResumoDeDespesasMensais[[#Headers],[Agosto]]&_ANO),Outros[Solicitação de seleção de data iniciada],\"<=\"&K$4)","v":{"v":0,"d":"R$ 0.00"}},{"$f":"SUMIFS(DespesasDiscriminadas[Verifique quantidade],DespesasDiscriminadas[Razão código],ResumoDeDespesasMensais[[#This Row],[Razão código]],DespesasDiscriminadas[Data da fatura:],\">=\"&L$3,DespesasDiscriminadas[Data da fatura:],\"<=\"&L$4)+SUMIFS(Outros[Verifique quantidade],Outros[Razão código],ResumoDeDespesasMensais[[#This Row],[Razão código]],Outros[Solicitação de seleção de data iniciada],\">=\"&DATEVALUE(\" 1 \"&ResumoDeDespesasMensais[[#Headers],[Setembro]]&_ANO),Outros[Solicitação de seleção de data iniciada],\"<=\"&L$4)","v":{"v":0,"d":"R$ 0.00"}},{"$f":"SUMIFS(DespesasDiscriminadas[Verifique quantidade],DespesasDiscriminadas[Razão código],ResumoDeDespesasMensais[[#This Row],[Razão código]],DespesasDiscriminadas[Data da fatura:],\">=\"&M$3,DespesasDiscriminadas[Data da fatura:],\"<=\"&M$4)+SUMIFS(Outros[Verifique quantidade],Outros[Razão código],ResumoDeDespesasMensais[[#This Row],[Razão código]],Outros[Solicitação de seleção de data iniciada],\">=\"&DATEVALUE(\" 1 \"&ResumoDeDespesasMensais[[#Headers],[Outubro]]&_ANO),Outros[Solicitação de seleção de data iniciada],\"<=\"&M$4)","v":{"v":0,"d":"R$ 0.00"}},{"$f":"SUMIFS(DespesasDiscriminadas[Verifique quantidade],DespesasDiscriminadas[Razão código],ResumoDeDespesasMensais[[#This Row],[Razão código]],DespesasDiscriminadas[Data da fatura:],\">=\"&N$3,DespesasDiscriminadas[Data da fatura:],\"<=\"&N$4)+SUMIFS(Outros[Verifique quantidade],Outros[Razão código],ResumoDeDespesasMensais[[#This Row],[Razão código]],Outros[Solicitação de seleção de data iniciada],\">=\"&DATEVALUE(\" 1 \"&ResumoDeDespesasMensais[[#Headers],[Novembro]]&_ANO),Outros[Solicitação de seleção de data iniciada],\"<=\"&N$4)","v":{"v":0,"d":"R$ 0.00"}},{"$f":"SUMIFS(DespesasDiscriminadas[Verifique quantidade],DespesasDiscriminadas[Razão código],ResumoDeDespesasMensais[[#This Row],[Razão código]],DespesasDiscriminadas[Data da fatura:],\">=\"&O$3,DespesasDiscriminadas[Data da fatura:],\"<=\"&O$4)+SUMIFS(Outros[Verifique quantidade],Outros[Razão código],ResumoDeDespesasMensais[[#This Row],[Razão código]],Outros[Solicitação de seleção de data iniciada],\">=\"&DATEVALUE(\" 1 \"&ResumoDeDespesasMensais[[#Headers],[Dezembro]]&_ANO),Outros[Solicitação de seleção de data iniciada],\"<=\"&O$4)","v":{"v":0,"d":"R$ 0.00"}},{"$f":"SUM(ResumoDeDespesasMensais[[#This Row],[Janeiro]:[Dezembro]])","v":{"v":0,"d":"R$ 0.00"}}]
[null,8000,"Plano médico",{"$f":"SUMIFS(DespesasDiscriminadas[Verifique quantidade],DespesasDiscriminadas[Razão código],ResumoDeDespesasMensais[[#This Row],[Razão código]],DespesasDiscriminadas[Data da fatura:],\">=\"&D$3,DespesasDiscriminadas[Data da fatura:],\"<=\"&D$4)+SUMIFS(Outros[Verifique quantidade],Outros[Razão código],ResumoDeDespesasMensais[[#This Row],[Razão código]],Outros[Solicitação de seleção de data iniciada],\">=\"&DATEVALUE(\" 1 \"&ResumoDeDespesasMensais[[#Headers],[Janeiro]]&_ANO),Outros[Solicitação de seleção de data iniciada],\"<=\"&D$4)","v":{"v":0,"d":"R$ 0.00"}},{"$f":"SUMIFS(DespesasDiscriminadas[Verifique quantidade],DespesasDiscriminadas[Razão código],ResumoDeDespesasMensais[[#This Row],[Razão código]],DespesasDiscriminadas[Data da fatura:],\">=\"&E$3,DespesasDiscriminadas[Data da fatura:],\"<=\"&E$4)+SUMIFS(Outros[Verifique quantidade],Outros[Razão código],ResumoDeDespesasMensais[[#This Row],[Razão código]],Outros[Solicitação de seleção de data iniciada],\">=\"&DATEVALUE(\" 1 \"&ResumoDeDespesasMensais[[#Headers],[Fevereiro]]&_ANO),Outros[Solicitação de seleção de data iniciada],\"<=\"&E$4)","v":{"v":0,"d":"R$ 0.00"}},{"$f":"SUMIFS(DespesasDiscriminadas[Verifique quantidade],DespesasDiscriminadas[Razão código],ResumoDeDespesasMensais[[#This Row],[Razão código]],DespesasDiscriminadas[Data da fatura:],\">=\"&F$3,DespesasDiscriminadas[Data da fatura:],\"<=\"&F$4)+SUMIFS(Outros[Verifique quantidade],Outros[Razão código],ResumoDeDespesasMensais[[#This Row],[Razão código]],Outros[Solicitação de seleção de data iniciada],\">=\"&DATEVALUE(\" 1 \"&ResumoDeDespesasMensais[[#Headers],[Março]]&_ANO),Outros[Solicitação de seleção de data iniciada],\"<=\"&F$4)","v":{"v":0,"d":"R$ 0.00"}},{"$f":"SUMIFS(DespesasDiscriminadas[Verifique quantidade],DespesasDiscriminadas[Razão código],ResumoDeDespesasMensais[[#This Row],[Razão código]],DespesasDiscriminadas[Data da fatura:],\">=\"&G$3,DespesasDiscriminadas[Data da fatura:],\"<=\"&G$4)+SUMIFS(Outros[Verifique quantidade],Outros[Razão código],ResumoDeDespesasMensais[[#This Row],[Razão código]],Outros[Solicitação de seleção de data iniciada],\">=\"&DATEVALUE(\" 1 \"&ResumoDeDespesasMensais[[#Headers],[Abr]]&_ANO),Outros[Solicitação de seleção de data iniciada],\"<=\"&G$4)","v":{"v":0,"d":"R$ 0.00"}},{"$f":"SUMIFS(DespesasDiscriminadas[Verifique quantidade],DespesasDiscriminadas[Razão código],ResumoDeDespesasMensais[[#This Row],[Razão código]],DespesasDiscriminadas[Data da fatura:],\">=\"&H$3,DespesasDiscriminadas[Data da fatura:],\"<=\"&H$4)+SUMIFS(Outros[Verifique quantidade],Outros[Razão código],ResumoDeDespesasMensais[[#This Row],[Razão código]],Outros[Solicitação de seleção de data iniciada],\">=\"&DATEVALUE(\" 1 \"&ResumoDeDespesasMensais[[#Headers],[Maio]]&_ANO),Outros[Solicitação de seleção de data iniciada],\"<=\"&H$4)","v":{"v":0,"d":"R$ 0.00"}},{"$f":"SUMIFS(DespesasDiscriminadas[Verifique quantidade],DespesasDiscriminadas[Razão código],ResumoDeDespesasMensais[[#This Row],[Razão código]],DespesasDiscriminadas[Data da fatura:],\">=\"&I$3,DespesasDiscriminadas[Data da fatura:],\"<=\"&I$4)+SUMIFS(Outros[Verifique quantidade],Outros[Razão código],ResumoDeDespesasMensais[[#This Row],[Razão código]],Outros[Solicitação de seleção de data iniciada],\">=\"&DATEVALUE(\" 1 \"&ResumoDeDespesasMensais[[#Headers],[Jun]]&_ANO),Outros[Solicitação de seleção de data iniciada],\"<=\"&I$4)","v":{"v":0,"d":"R$ 0.00"}},{"$f":"SUMIFS(DespesasDiscriminadas[Verifique quantidade],DespesasDiscriminadas[Razão código],ResumoDeDespesasMensais[[#This Row],[Razão código]],DespesasDiscriminadas[Data da fatura:],\">=\"&J$3,DespesasDiscriminadas[Data da fatura:],\"<=\"&J$4)+SUMIFS(Outros[Verifique quantidade],Outros[Razão código],ResumoDeDespesasMensais[[#This Row],[Razão código]],Outros[Solicitação de seleção de data iniciada],\">=\"&DATEVALUE(\" 1 \"&ResumoDeDespesasMensais[[#Headers],[Julho]]&_ANO),Outros[Solicitação de seleção de data iniciada],\"<=\"&J$4)","v":{"v":0,"d":"R$ 0.00"}},{"$f":"SUMIFS(DespesasDiscriminadas[Verifique quantidade],DespesasDiscriminadas[Razão código],ResumoDeDespesasMensais[[#This Row],[Razão código]],DespesasDiscriminadas[Data da fatura:],\">=\"&K$3,DespesasDiscriminadas[Data da fatura:],\"<=\"&K$4)+SUMIFS(Outros[Verifique quantidade],Outros[Razão código],ResumoDeDespesasMensais[[#This Row],[Razão código]],Outros[Solicitação de seleção de data iniciada],\">=\"&DATEVALUE(\" 1 \"&ResumoDeDespesasMensais[[#Headers],[Agosto]]&_ANO),Outros[Solicitação de seleção de data iniciada],\"<=\"&K$4)","v":{"v":0,"d":"R$ 0.00"}},{"$f":"SUMIFS(DespesasDiscriminadas[Verifique quantidade],DespesasDiscriminadas[Razão código],ResumoDeDespesasMensais[[#This Row],[Razão código]],DespesasDiscriminadas[Data da fatura:],\">=\"&L$3,DespesasDiscriminadas[Data da fatura:],\"<=\"&L$4)+SUMIFS(Outros[Verifique quantidade],Outros[Razão código],ResumoDeDespesasMensais[[#This Row],[Razão código]],Outros[Solicitação de seleção de data iniciada],\">=\"&DATEVALUE(\" 1 \"&ResumoDeDespesasMensais[[#Headers],[Setembro]]&_ANO),Outros[Solicitação de seleção de data iniciada],\"<=\"&L$4)","v":{"v":0,"d":"R$ 0.00"}},{"$f":"SUMIFS(DespesasDiscriminadas[Verifique quantidade],DespesasDiscriminadas[Razão código],ResumoDeDespesasMensais[[#This Row],[Razão código]],DespesasDiscriminadas[Data da fatura:],\">=\"&M$3,DespesasDiscriminadas[Data da fatura:],\"<=\"&M$4)+SUMIFS(Outros[Verifique quantidade],Outros[Razão código],ResumoDeDespesasMensais[[#This Row],[Razão código]],Outros[Solicitação de seleção de data iniciada],\">=\"&DATEVALUE(\" 1 \"&ResumoDeDespesasMensais[[#Headers],[Outubro]]&_ANO),Outros[Solicitação de seleção de data iniciada],\"<=\"&M$4)","v":{"v":0,"d":"R$ 0.00"}},{"$f":"SUMIFS(DespesasDiscriminadas[Verifique quantidade],DespesasDiscriminadas[Razão código],ResumoDeDespesasMensais[[#This Row],[Razão código]],DespesasDiscriminadas[Data da fatura:],\">=\"&N$3,DespesasDiscriminadas[Data da fatura:],\"<=\"&N$4)+SUMIFS(Outros[Verifique quantidade],Outros[Razão código],ResumoDeDespesasMensais[[#This Row],[Razão código]],Outros[Solicitação de seleção de data iniciada],\">=\"&DATEVALUE(\" 1 \"&ResumoDeDespesasMensais[[#Headers],[Novembro]]&_ANO),Outros[Solicitação de seleção de data iniciada],\"<=\"&N$4)","v":{"v":0,"d":"R$ 0.00"}},{"$f":"SUMIFS(DespesasDiscriminadas[Verifique quantidade],DespesasDiscriminadas[Razão código],ResumoDeDespesasMensais[[#This Row],[Razão código]],DespesasDiscriminadas[Data da fatura:],\">=\"&O$3,DespesasDiscriminadas[Data da fatura:],\"<=\"&O$4)+SUMIFS(Outros[Verifique quantidade],Outros[Razão código],ResumoDeDespesasMensais[[#This Row],[Razão código]],Outros[Solicitação de seleção de data iniciada],\">=\"&DATEVALUE(\" 1 \"&ResumoDeDespesasMensais[[#Headers],[Dezembro]]&_ANO),Outros[Solicitação de seleção de data iniciada],\"<=\"&O$4)","v":{"v":0,"d":"R$ 0.00"}},{"$f":"SUM(ResumoDeDespesasMensais[[#This Row],[Janeiro]:[Dezembro]])","v":{"v":0,"d":"R$ 0.00"}}]
[null,9000,"Custos do edifício",{"$f":"SUMIFS(DespesasDiscriminadas[Verifique quantidade],DespesasDiscriminadas[Razão código],ResumoDeDespesasMensais[[#This Row],[Razão código]],DespesasDiscriminadas[Data da fatura:],\">=\"&D$3,DespesasDiscriminadas[Data da fatura:],\"<=\"&D$4)+SUMIFS(Outros[Verifique quantidade],Outros[Razão código],ResumoDeDespesasMensais[[#This Row],[Razão código]],Outros[Solicitação de seleção de data iniciada],\">=\"&DATEVALUE(\" 1 \"&ResumoDeDespesasMensais[[#Headers],[Janeiro]]&_ANO),Outros[Solicitação de seleção de data iniciada],\"<=\"&D$4)","v":{"v":0,"d":"R$ 0.00"}},{"$f":"SUMIFS(DespesasDiscriminadas[Verifique quantidade],DespesasDiscriminadas[Razão código],ResumoDeDespesasMensais[[#This Row],[Razão código]],DespesasDiscriminadas[Data da fatura:],\">=\"&E$3,DespesasDiscriminadas[Data da fatura:],\"<=\"&E$4)+SUMIFS(Outros[Verifique quantidade],Outros[Razão código],ResumoDeDespesasMensais[[#This Row],[Razão código]],Outros[Solicitação de seleção de data iniciada],\">=\"&DATEVALUE(\" 1 \"&ResumoDeDespesasMensais[[#Headers],[Fevereiro]]&_ANO),Outros[Solicitação de seleção de data iniciada],\"<=\"&E$4)","v":{"v":0,"d":"R$ 0.00"}},{"$f":"SUMIFS(DespesasDiscriminadas[Verifique quantidade],DespesasDiscriminadas[Razão código],ResumoDeDespesasMensais[[#This Row],[Razão código]],DespesasDiscriminadas[Data da fatura:],\">=\"&F$3,DespesasDiscriminadas[Data da fatura:],\"<=\"&F$4)+SUMIFS(Outros[Verifique quantidade],Outros[Razão código],ResumoDeDespesasMensais[[#This Row],[Razão código]],Outros[Solicitação de seleção de data iniciada],\">=\"&DATEVALUE(\" 1 \"&ResumoDeDespesasMensais[[#Headers],[Março]]&_ANO),Outros[Solicitação de seleção de data iniciada],\"<=\"&F$4)","v":{"v":0,"d":"R$ 0.00"}},{"$f":"SUMIFS(DespesasDiscriminadas[Verifique quantidade],DespesasDiscriminadas[Razão código],ResumoDeDespesasMensais[[#This Row],[Razão código]],DespesasDiscriminadas[Data da fatura:],\">=\"&G$3,DespesasDiscriminadas[Data da fatura:],\"<=\"&G$4)+SUMIFS(Outros[Verifique quantidade],Outros[Razão código],ResumoDeDespesasMensais[[#This Row],[Razão código]],Outros[Solicitação de seleção de data iniciada],\">=\"&DATEVALUE(\" 1 \"&ResumoDeDespesasMensais[[#Headers],[Abr]]&_ANO),Outros[Solicitação de seleção de data iniciada],\"<=\"&G$4)","v":{"v":0,"d":"R$ 0.00"}},{"$f":"SUMIFS(DespesasDiscriminadas[Verifique quantidade],DespesasDiscriminadas[Razão código],ResumoDeDespesasMensais[[#This Row],[Razão código]],DespesasDiscriminadas[Data da fatura:],\">=\"&H$3,DespesasDiscriminadas[Data da fatura:],\"<=\"&H$4)+SUMIFS(Outros[Verifique quantidade],Outros[Razão código],ResumoDeDespesasMensais[[#This Row],[Razão código]],Outros[Solicitação de seleção de data iniciada],\">=\"&DATEVALUE(\" 1 \"&ResumoDeDespesasMensais[[#Headers],[Maio]]&_ANO),Outros[Solicitação de seleção de data iniciada],\"<=\"&H$4)","v":{"v":0,"d":"R$ 0.00"}},{"$f":"SUMIFS(DespesasDiscriminadas[Verifique quantidade],DespesasDiscriminadas[Razão código],ResumoDeDespesasMensais[[#This Row],[Razão código]],DespesasDiscriminadas[Data da fatura:],\">=\"&I$3,DespesasDiscriminadas[Data da fatura:],\"<=\"&I$4)+SUMIFS(Outros[Verifique quantidade],Outros[Razão código],ResumoDeDespesasMensais[[#This Row],[Razão código]],Outros[Solicitação de seleção de data iniciada],\">=\"&DATEVALUE(\" 1 \"&ResumoDeDespesasMensais[[#Headers],[Jun]]&_ANO),Outros[Solicitação de seleção de data iniciada],\"<=\"&I$4)","v":{"v":0,"d":"R$ 0.00"}},{"$f":"SUMIFS(DespesasDiscriminadas[Verifique quantidade],DespesasDiscriminadas[Razão código],ResumoDeDespesasMensais[[#This Row],[Razão código]],DespesasDiscriminadas[Data da fatura:],\">=\"&J$3,DespesasDiscriminadas[Data da fatura:],\"<=\"&J$4)+SUMIFS(Outros[Verifique quantidade],Outros[Razão código],ResumoDeDespesasMensais[[#This Row],[Razão código]],Outros[Solicitação de seleção de data iniciada],\">=\"&DATEVALUE(\" 1 \"&ResumoDeDespesasMensais[[#Headers],[Julho]]&_ANO),Outros[Solicitação de seleção de data iniciada],\"<=\"&J$4)","v":{"v":0,"d":"R$ 0.00"}},{"$f":"SUMIFS(DespesasDiscriminadas[Verifique quantidade],DespesasDiscriminadas[Razão código],ResumoDeDespesasMensais[[#This Row],[Razão código]],DespesasDiscriminadas[Data da fatura:],\">=\"&K$3,DespesasDiscriminadas[Data da fatura:],\"<=\"&K$4)+SUMIFS(Outros[Verifique quantidade],Outros[Razão código],ResumoDeDespesasMensais[[#This Row],[Razão código]],Outros[Solicitação de seleção de data iniciada],\">=\"&DATEVALUE(\" 1 \"&ResumoDeDespesasMensais[[#Headers],[Agosto]]&_ANO),Outros[Solicitação de seleção de data iniciada],\"<=\"&K$4)","v":{"v":0,"d":"R$ 0.00"}},{"$f":"SUMIFS(DespesasDiscriminadas[Verifique quantidade],DespesasDiscriminadas[Razão código],ResumoDeDespesasMensais[[#This Row],[Razão código]],DespesasDiscriminadas[Data da fatura:],\">=\"&L$3,DespesasDiscriminadas[Data da fatura:],\"<=\"&L$4)+SUMIFS(Outros[Verifique quantidade],Outros[Razão código],ResumoDeDespesasMensais[[#This Row],[Razão código]],Outros[Solicitação de seleção de data iniciada],\">=\"&DATEVALUE(\" 1 \"&ResumoDeDespesasMensais[[#Headers],[Setembro]]&_ANO),Outros[Solicitação de seleção de data iniciada],\"<=\"&L$4)","v":{"v":0,"d":"R$ 0.00"}},{"$f":"SUMIFS(DespesasDiscriminadas[Verifique quantidade],DespesasDiscriminadas[Razão código],ResumoDeDespesasMensais[[#This Row],[Razão código]],DespesasDiscriminadas[Data da fatura:],\">=\"&M$3,DespesasDiscriminadas[Data da fatura:],\"<=\"&M$4)+SUMIFS(Outros[Verifique quantidade],Outros[Razão código],ResumoDeDespesasMensais[[#This Row],[Razão código]],Outros[Solicitação de seleção de data iniciada],\">=\"&DATEVALUE(\" 1 \"&ResumoDeDespesasMensais[[#Headers],[Outubro]]&_ANO),Outros[Solicitação de seleção de data iniciada],\"<=\"&M$4)","v":{"v":0,"d":"R$ 0.00"}},{"$f":"SUMIFS(DespesasDiscriminadas[Verifique quantidade],DespesasDiscriminadas[Razão código],ResumoDeDespesasMensais[[#This Row],[Razão código]],DespesasDiscriminadas[Data da fatura:],\">=\"&N$3,DespesasDiscriminadas[Data da fatura:],\"<=\"&N$4)+SUMIFS(Outros[Verifique quantidade],Outros[Razão código],ResumoDeDespesasMensais[[#This Row],[Razão código]],Outros[Solicitação de seleção de data iniciada],\">=\"&DATEVALUE(\" 1 \"&ResumoDeDespesasMensais[[#Headers],[Novembro]]&_ANO),Outros[Solicitação de seleção de data iniciada],\"<=\"&N$4)","v":{"v":0,"d":"R$ 0.00"}},{"$f":"SUMIFS(DespesasDiscriminadas[Verifique quantidade],DespesasDiscriminadas[Razão código],ResumoDeDespesasMensais[[#This Row],[Razão código]],DespesasDiscriminadas[Data da fatura:],\">=\"&O$3,DespesasDiscriminadas[Data da fatura:],\"<=\"&O$4)+SUMIFS(Outros[Verifique quantidade],Outros[Razão código],ResumoDeDespesasMensais[[#This Row],[Razão código]],Outros[Solicitação de seleção de data iniciada],\">=\"&DATEVALUE(\" 1 \"&ResumoDeDespesasMensais[[#Headers],[Dezembro]]&_ANO),Outros[Solicitação de seleção de data iniciada],\"<=\"&O$4)","v":{"v":0,"d":"R$ 0.00"}},{"$f":"SUM(ResumoDeDespesasMensais[[#This Row],[Janeiro]:[Dezembro]])","v":{"v":0,"d":"R$ 0.00"}}]
[null,10000,"Marketing",{"$f":"SUMIFS(DespesasDiscriminadas[Verifique quantidade],DespesasDiscriminadas[Razão código],ResumoDeDespesasMensais[[#This Row],[Razão código]],DespesasDiscriminadas[Data da fatura:],\">=\"&D$3,DespesasDiscriminadas[Data da fatura:],\"<=\"&D$4)+SUMIFS(Outros[Verifique quantidade],Outros[Razão código],ResumoDeDespesasMensais[[#This Row],[Razão código]],Outros[Solicitação de seleção de data iniciada],\">=\"&DATEVALUE(\" 1 \"&ResumoDeDespesasMensais[[#Headers],[Janeiro]]&_ANO),Outros[Solicitação de seleção de data iniciada],\"<=\"&D$4)","v":{"v":0,"d":"R$ 0.00"}},{"$f":"SUMIFS(DespesasDiscriminadas[Verifique quantidade],DespesasDiscriminadas[Razão código],ResumoDeDespesasMensais[[#This Row],[Razão código]],DespesasDiscriminadas[Data da fatura:],\">=\"&E$3,DespesasDiscriminadas[Data da fatura:],\"<=\"&E$4)+SUMIFS(Outros[Verifique quantidade],Outros[Razão código],ResumoDeDespesasMensais[[#This Row],[Razão código]],Outros[Solicitação de seleção de data iniciada],\">=\"&DATEVALUE(\" 1 \"&ResumoDeDespesasMensais[[#Headers],[Fevereiro]]&_ANO),Outros[Solicitação de seleção de data iniciada],\"<=\"&E$4)","v":{"v":0,"d":"R$ 0.00"}},{"$f":"SUMIFS(DespesasDiscriminadas[Verifique quantidade],DespesasDiscriminadas[Razão código],ResumoDeDespesasMensais[[#This Row],[Razão código]],DespesasDiscriminadas[Data da fatura:],\">=\"&F$3,DespesasDiscriminadas[Data da fatura:],\"<=\"&F$4)+SUMIFS(Outros[Verifique quantidade],Outros[Razão código],ResumoDeDespesasMensais[[#This Row],[Razão código]],Outros[Solicitação de seleção de data iniciada],\">=\"&DATEVALUE(\" 1 \"&ResumoDeDespesasMensais[[#Headers],[Março]]&_ANO),Outros[Solicitação de seleção de data iniciada],\"<=\"&F$4)","v":{"v":0,"d":"R$ 0.00"}},{"$f":"SUMIFS(DespesasDiscriminadas[Verifique quantidade],DespesasDiscriminadas[Razão código],ResumoDeDespesasMensais[[#This Row],[Razão código]],DespesasDiscriminadas[Data da fatura:],\">=\"&G$3,DespesasDiscriminadas[Data da fatura:],\"<=\"&G$4)+SUMIFS(Outros[Verifique quantidade],Outros[Razão código],ResumoDeDespesasMensais[[#This Row],[Razão código]],Outros[Solicitação de seleção de data iniciada],\">=\"&DATEVALUE(\" 1 \"&ResumoDeDespesasMensais[[#Headers],[Abr]]&_ANO),Outros[Solicitação de seleção de data iniciada],\"<=\"&G$4)","v":{"v":0,"d":"R$ 0.00"}},{"$f":"SUMIFS(DespesasDiscriminadas[Verifique quantidade],DespesasDiscriminadas[Razão código],ResumoDeDespesasMensais[[#This Row],[Razão código]],DespesasDiscriminadas[Data da fatura:],\">=\"&H$3,DespesasDiscriminadas[Data da fatura:],\"<=\"&H$4)+SUMIFS(Outros[Verifique quantidade],Outros[Razão código],ResumoDeDespesasMensais[[#This Row],[Razão código]],Outros[Solicitação de seleção de data iniciada],\">=\"&DATEVALUE(\" 1 \"&ResumoDeDespesasMensais[[#Headers],[Maio]]&_ANO),Outros[Solicitação de seleção de data iniciada],\"<=\"&H$4)","v":{"v":0,"d":"R$ 0.00"}},{"$f":"SUMIFS(DespesasDiscriminadas[Verifique quantidade],DespesasDiscriminadas[Razão código],ResumoDeDespesasMensais[[#This Row],[Razão código]],DespesasDiscriminadas[Data da fatura:],\">=\"&I$3,DespesasDiscriminadas[Data da fatura:],\"<=\"&I$4)+SUMIFS(Outros[Verifique quantidade],Outros[Razão código],ResumoDeDespesasMensais[[#This Row],[Razão código]],Outros[Solicitação de seleção de data iniciada],\">=\"&DATEVALUE(\" 1 \"&ResumoDeDespesasMensais[[#Headers],[Jun]]&_ANO),Outros[Solicitação de seleção de data iniciada],\"<=\"&I$4)","v":{"v":0,"d":"R$ 0.00"}},{"$f":"SUMIFS(DespesasDiscriminadas[Verifique quantidade],DespesasDiscriminadas[Razão código],ResumoDeDespesasMensais[[#This Row],[Razão código]],DespesasDiscriminadas[Data da fatura:],\">=\"&J$3,DespesasDiscriminadas[Data da fatura:],\"<=\"&J$4)+SUMIFS(Outros[Verifique quantidade],Outros[Razão código],ResumoDeDespesasMensais[[#This Row],[Razão código]],Outros[Solicitação de seleção de data iniciada],\">=\"&DATEVALUE(\" 1 \"&ResumoDeDespesasMensais[[#Headers],[Julho]]&_ANO),Outros[Solicitação de seleção de data iniciada],\"<=\"&J$4)","v":{"v":0,"d":"R$ 0.00"}},{"$f":"SUMIFS(DespesasDiscriminadas[Verifique quantidade],DespesasDiscriminadas[Razão código],ResumoDeDespesasMensais[[#This Row],[Razão código]],DespesasDiscriminadas[Data da fatura:],\">=\"&K$3,DespesasDiscriminadas[Data da fatura:],\"<=\"&K$4)+SUMIFS(Outros[Verifique quantidade],Outros[Razão código],ResumoDeDespesasMensais[[#This Row],[Razão código]],Outros[Solicitação de seleção de data iniciada],\">=\"&DATEVALUE(\" 1 \"&ResumoDeDespesasMensais[[#Headers],[Agosto]]&_ANO),Outros[Solicitação de seleção de data iniciada],\"<=\"&K$4)","v":{"v":0,"d":"R$ 0.00"}},{"$f":"SUMIFS(DespesasDiscriminadas[Verifique quantidade],DespesasDiscriminadas[Razão código],ResumoDeDespesasMensais[[#This Row],[Razão código]],DespesasDiscriminadas[Data da fatura:],\">=\"&L$3,DespesasDiscriminadas[Data da fatura:],\"<=\"&L$4)+SUMIFS(Outros[Verifique quantidade],Outros[Razão código],ResumoDeDespesasMensais[[#This Row],[Razão código]],Outros[Solicitação de seleção de data iniciada],\">=\"&DATEVALUE(\" 1 \"&ResumoDeDespesasMensais[[#Headers],[Setembro]]&_ANO),Outros[Solicitação de seleção de data iniciada],\"<=\"&L$4)","v":{"v":0,"d":"R$ 0.00"}},{"$f":"SUMIFS(DespesasDiscriminadas[Verifique quantidade],DespesasDiscriminadas[Razão código],ResumoDeDespesasMensais[[#This Row],[Razão código]],DespesasDiscriminadas[Data da fatura:],\">=\"&M$3,DespesasDiscriminadas[Data da fatura:],\"<=\"&M$4)+SUMIFS(Outros[Verifique quantidade],Outros[Razão código],ResumoDeDespesasMensais[[#This Row],[Razão código]],Outros[Solicitação de seleção de data iniciada],\">=\"&DATEVALUE(\" 1 \"&ResumoDeDespesasMensais[[#Headers],[Outubro]]&_ANO),Outros[Solicitação de seleção de data iniciada],\"<=\"&M$4)","v":{"v":0,"d":"R$ 0.00"}},{"$f":"SUMIFS(DespesasDiscriminadas[Verifique quantidade],DespesasDiscriminadas[Razão código],ResumoDeDespesasMensais[[#This Row],[Razão código]],DespesasDiscriminadas[Data da fatura:],\">=\"&N$3,DespesasDiscriminadas[Data da fatura:],\"<=\"&N$4)+SUMIFS(Outros[Verifique quantidade],Outros[Razão código],ResumoDeDespesasMensais[[#This Row],[Razão código]],Outros[Solicitação de seleção de data iniciada],\">=\"&DATEVALUE(\" 1 \"&ResumoDeDespesasMensais[[#Headers],[Novembro]]&_ANO),Outros[Solicitação de seleção de data iniciada],\"<=\"&N$4)","v":{"v":0,"d":"R$ 0.00"}},{"$f":"SUMIFS(DespesasDiscriminadas[Verifique quantidade],DespesasDiscriminadas[Razão código],ResumoDeDespesasMensais[[#This Row],[Razão código]],DespesasDiscriminadas[Data da fatura:],\">=\"&O$3,DespesasDiscriminadas[Data da fatura:],\"<=\"&O$4)+SUMIFS(Outros[Verifique quantidade],Outros[Razão código],ResumoDeDespesasMensais[[#This Row],[Razão código]],Outros[Solicitação de seleção de data iniciada],\">=\"&DATEVALUE(\" 1 \"&ResumoDeDespesasMensais[[#Headers],[Dezembro]]&_ANO),Outros[Solicitação de seleção de data iniciada],\"<=\"&O$4)","v":{"v":0,"d":"R$ 0.00"}},{"$f":"SUM(ResumoDeDespesasMensais[[#This Row],[Janeiro]:[Dezembro]])","v":{"v":0,"d":"R$ 0.00"}}]
[null,11000,"Donativos",{"$f":"SUMIFS(DespesasDiscriminadas[Verifique quantidade],DespesasDiscriminadas[Razão código],ResumoDeDespesasMensais[[#This Row],[Razão código]],DespesasDiscriminadas[Data da fatura:],\">=\"&D$3,DespesasDiscriminadas[Data da fatura:],\"<=\"&D$4)+SUMIFS(Outros[Verifique quantidade],Outros[Razão código],ResumoDeDespesasMensais[[#This Row],[Razão código]],Outros[Solicitação de seleção de data iniciada],\">=\"&DATEVALUE(\" 1 \"&ResumoDeDespesasMensais[[#Headers],[Janeiro]]&_ANO),Outros[Solicitação de seleção de data iniciada],\"<=\"&D$4)","v":{"v":0,"d":"R$ 0.00"}},{"$f":"SUMIFS(DespesasDiscriminadas[Verifique quantidade],DespesasDiscriminadas[Razão código],ResumoDeDespesasMensais[[#This Row],[Razão código]],DespesasDiscriminadas[Data da fatura:],\">=\"&E$3,DespesasDiscriminadas[Data da fatura:],\"<=\"&E$4)+SUMIFS(Outros[Verifique quantidade],Outros[Razão código],ResumoDeDespesasMensais[[#This Row],[Razão código]],Outros[Solicitação de seleção de data iniciada],\">=\"&DATEVALUE(\" 1 \"&ResumoDeDespesasMensais[[#Headers],[Fevereiro]]&_ANO),Outros[Solicitação de seleção de data iniciada],\"<=\"&E$4)","v":{"v":0,"d":"R$ 0.00"}},{"$f":"SUMIFS(DespesasDiscriminadas[Verifique quantidade],DespesasDiscriminadas[Razão código],ResumoDeDespesasMensais[[#This Row],[Razão código]],DespesasDiscriminadas[Data da fatura:],\">=\"&F$3,DespesasDiscriminadas[Data da fatura:],\"<=\"&F$4)+SUMIFS(Outros[Verifique quantidade],Outros[Razão código],ResumoDeDespesasMensais[[#This Row],[Razão código]],Outros[Solicitação de seleção de data iniciada],\">=\"&DATEVALUE(\" 1 \"&ResumoDeDespesasMensais[[#Headers],[Março]]&_ANO),Outros[Solicitação de seleção de data iniciada],\"<=\"&F$4)","v":{"v":0,"d":"R$ 0.00"}},{"$f":"SUMIFS(DespesasDiscriminadas[Verifique quantidade],DespesasDiscriminadas[Razão código],ResumoDeDespesasMensais[[#This Row],[Razão código]],DespesasDiscriminadas[Data da fatura:],\">=\"&G$3,DespesasDiscriminadas[Data da fatura:],\"<=\"&G$4)+SUMIFS(Outros[Verifique quantidade],Outros[Razão código],ResumoDeDespesasMensais[[#This Row],[Razão código]],Outros[Solicitação de seleção de data iniciada],\">=\"&DATEVALUE(\" 1 \"&ResumoDeDespesasMensais[[#Headers],[Abr]]&_ANO),Outros[Solicitação de seleção de data iniciada],\"<=\"&G$4)","v":{"v":0,"d":"R$ 0.00"}},{"$f":"SUMIFS(DespesasDiscriminadas[Verifique quantidade],DespesasDiscriminadas[Razão código],ResumoDeDespesasMensais[[#This Row],[Razão código]],DespesasDiscriminadas[Data da fatura:],\">=\"&H$3,DespesasDiscriminadas[Data da fatura:],\"<=\"&H$4)+SUMIFS(Outros[Verifique quantidade],Outros[Razão código],ResumoDeDespesasMensais[[#This Row],[Razão código]],Outros[Solicitação de seleção de data iniciada],\">=\"&DATEVALUE(\" 1 \"&ResumoDeDespesasMensais[[#Headers],[Maio]]&_ANO),Outros[Solicitação de seleção de data iniciada],\"<=\"&H$4)","v":{"v":0,"d":"R$ 0.00"}},{"$f":"SUMIFS(DespesasDiscriminadas[Verifique quantidade],DespesasDiscriminadas[Razão código],ResumoDeDespesasMensais[[#This Row],[Razão código]],DespesasDiscriminadas[Data da fatura:],\">=\"&I$3,DespesasDiscriminadas[Data da fatura:],\"<=\"&I$4)+SUMIFS(Outros[Verifique quantidade],Outros[Razão código],ResumoDeDespesasMensais[[#This Row],[Razão código]],Outros[Solicitação de seleção de data iniciada],\">=\"&DATEVALUE(\" 1 \"&ResumoDeDespesasMensais[[#Headers],[Jun]]&_ANO),Outros[Solicitação de seleção de data iniciada],\"<=\"&I$4)","v":{"v":0,"d":"R$ 0.00"}},{"$f":"SUMIFS(DespesasDiscriminadas[Verifique quantidade],DespesasDiscriminadas[Razão código],ResumoDeDespesasMensais[[#This Row],[Razão código]],DespesasDiscriminadas[Data da fatura:],\">=\"&J$3,DespesasDiscriminadas[Data da fatura:],\"<=\"&J$4)+SUMIFS(Outros[Verifique quantidade],Outros[Razão código],ResumoDeDespesasMensais[[#This Row],[Razão código]],Outros[Solicitação de seleção de data iniciada],\">=\"&DATEVALUE(\" 1 \"&ResumoDeDespesasMensais[[#Headers],[Julho]]&_ANO),Outros[Solicitação de seleção de data iniciada],\"<=\"&J$4)","v":{"v":0,"d":"R$ 0.00"}},{"$f":"SUMIFS(DespesasDiscriminadas[Verifique quantidade],DespesasDiscriminadas[Razão código],ResumoDeDespesasMensais[[#This Row],[Razão código]],DespesasDiscriminadas[Data da fatura:],\">=\"&K$3,DespesasDiscriminadas[Data da fatura:],\"<=\"&K$4)+SUMIFS(Outros[Verifique quantidade],Outros[Razão código],ResumoDeDespesasMensais[[#This Row],[Razão código]],Outros[Solicitação de seleção de data iniciada],\">=\"&DATEVALUE(\" 1 \"&ResumoDeDespesasMensais[[#Headers],[Agosto]]&_ANO),Outros[Solicitação de seleção de data iniciada],\"<=\"&K$4)","v":{"v":0,"d":"R$ 0.00"}},{"$f":"SUMIFS(DespesasDiscriminadas[Verifique quantidade],DespesasDiscriminadas[Razão código],ResumoDeDespesasMensais[[#This Row],[Razão código]],DespesasDiscriminadas[Data da fatura:],\">=\"&L$3,DespesasDiscriminadas[Data da fatura:],\"<=\"&L$4)+SUMIFS(Outros[Verifique quantidade],Outros[Razão código],ResumoDeDespesasMensais[[#This Row],[Razão código]],Outros[Solicitação de seleção de data iniciada],\">=\"&DATEVALUE(\" 1 \"&ResumoDeDespesasMensais[[#Headers],[Setembro]]&_ANO),Outros[Solicitação de seleção de data iniciada],\"<=\"&L$4)","v":{"v":0,"d":"R$ 0.00"}},{"$f":"SUMIFS(DespesasDiscriminadas[Verifique quantidade],DespesasDiscriminadas[Razão código],ResumoDeDespesasMensais[[#This Row],[Razão código]],DespesasDiscriminadas[Data da fatura:],\">=\"&M$3,DespesasDiscriminadas[Data da fatura:],\"<=\"&M$4)+SUMIFS(Outros[Verifique quantidade],Outros[Razão código],ResumoDeDespesasMensais[[#This Row],[Razão código]],Outros[Solicitação de seleção de data iniciada],\">=\"&DATEVALUE(\" 1 \"&ResumoDeDespesasMensais[[#Headers],[Outubro]]&_ANO),Outros[Solicitação de seleção de data iniciada],\"<=\"&M$4)","v":{"v":0,"d":"R$ 0.00"}},{"$f":"SUMIFS(DespesasDiscriminadas[Verifique quantidade],DespesasDiscriminadas[Razão código],ResumoDeDespesasMensais[[#This Row],[Razão código]],DespesasDiscriminadas[Data da fatura:],\">=\"&N$3,DespesasDiscriminadas[Data da fatura:],\"<=\"&N$4)+SUMIFS(Outros[Verifique quantidade],Outros[Razão código],ResumoDeDespesasMensais[[#This Row],[Razão código]],Outros[Solicitação de seleção de data iniciada],\">=\"&DATEVALUE(\" 1 \"&ResumoDeDespesasMensais[[#Headers],[Novembro]]&_ANO),Outros[Solicitação de seleção de data iniciada],\"<=\"&N$4)","v":{"v":0,"d":"R$ 0.00"}},{"$f":"SUMIFS(DespesasDiscriminadas[Verifique quantidade],DespesasDiscriminadas[Razão código],ResumoDeDespesasMensais[[#This Row],[Razão código]],DespesasDiscriminadas[Data da fatura:],\">=\"&O$3,DespesasDiscriminadas[Data da fatura:],\"<=\"&O$4)+SUMIFS(Outros[Verifique quantidade],Outros[Razão código],ResumoDeDespesasMensais[[#This Row],[Razão código]],Outros[Solicitação de seleção de data iniciada],\">=\"&DATEVALUE(\" 1 \"&ResumoDeDespesasMensais[[#Headers],[Dezembro]]&_ANO),Outros[Solicitação de seleção de data iniciada],\"<=\"&O$4)","v":{"v":0,"d":"R$ 0.00"}},{"$f":"SUM(ResumoDeDespesasMensais[[#This Row],[Janeiro]:[Dezembro]])","v":{"v":0,"d":"R$ 0.00"}}]
[null,12000,"Patrocínios",{"$f":"SUMIFS(DespesasDiscriminadas[Verifique quantidade],DespesasDiscriminadas[Razão código],ResumoDeDespesasMensais[[#This Row],[Razão código]],DespesasDiscriminadas[Data da fatura:],\">=\"&D$3,DespesasDiscriminadas[Data da fatura:],\"<=\"&D$4)+SUMIFS(Outros[Verifique quantidade],Outros[Razão código],ResumoDeDespesasMensais[[#This Row],[Razão código]],Outros[Solicitação de seleção de data iniciada],\">=\"&DATEVALUE(\" 1 \"&ResumoDeDespesasMensais[[#Headers],[Janeiro]]&_ANO),Outros[Solicitação de seleção de data iniciada],\"<=\"&D$4)","v":{"v":0,"d":"R$ 0.00"}},{"$f":"SUMIFS(DespesasDiscriminadas[Verifique quantidade],DespesasDiscriminadas[Razão código],ResumoDeDespesasMensais[[#This Row],[Razão código]],DespesasDiscriminadas[Data da fatura:],\">=\"&E$3,DespesasDiscriminadas[Data da fatura:],\"<=\"&E$4)+SUMIFS(Outros[Verifique quantidade],Outros[Razão código],ResumoDeDespesasMensais[[#This Row],[Razão código]],Outros[Solicitação de seleção de data iniciada],\">=\"&DATEVALUE(\" 1 \"&ResumoDeDespesasMensais[[#Headers],[Fevereiro]]&_ANO),Outros[Solicitação de seleção de data iniciada],\"<=\"&E$4)","v":{"v":0,"d":"R$ 0.00"}},{"$f":"SUMIFS(DespesasDiscriminadas[Verifique quantidade],DespesasDiscriminadas[Razão código],ResumoDeDespesasMensais[[#This Row],[Razão código]],DespesasDiscriminadas[Data da fatura:],\">=\"&F$3,DespesasDiscriminadas[Data da fatura:],\"<=\"&F$4)+SUMIFS(Outros[Verifique quantidade],Outros[Razão código],ResumoDeDespesasMensais[[#This Row],[Razão código]],Outros[Solicitação de seleção de data iniciada],\">=\"&DATEVALUE(\" 1 \"&ResumoDeDespesasMensais[[#Headers],[Março]]&_ANO),Outros[Solicitação de seleção de data iniciada],\"<=\"&F$4)","v":{"v":0,"d":"R$ 0.00"}},{"$f":"SUMIFS(DespesasDiscriminadas[Verifique quantidade],DespesasDiscriminadas[Razão código],ResumoDeDespesasMensais[[#This Row],[Razão código]],DespesasDiscriminadas[Data da fatura:],\">=\"&G$3,DespesasDiscriminadas[Data da fatura:],\"<=\"&G$4)+SUMIFS(Outros[Verifique quantidade],Outros[Razão código],ResumoDeDespesasMensais[[#This Row],[Razão código]],Outros[Solicitação de seleção de data iniciada],\">=\"&DATEVALUE(\" 1 \"&ResumoDeDespesasMensais[[#Headers],[Abr]]&_ANO),Outros[Solicitação de seleção de data iniciada],\"<=\"&G$4)","v":{"v":0,"d":"R$ 0.00"}},{"$f":"SUMIFS(DespesasDiscriminadas[Verifique quantidade],DespesasDiscriminadas[Razão código],ResumoDeDespesasMensais[[#This Row],[Razão código]],DespesasDiscriminadas[Data da fatura:],\">=\"&H$3,DespesasDiscriminadas[Data da fatura:],\"<=\"&H$4)+SUMIFS(Outros[Verifique quantidade],Outros[Razão código],ResumoDeDespesasMensais[[#This Row],[Razão código]],Outros[Solicitação de seleção de data iniciada],\">=\"&DATEVALUE(\" 1 \"&ResumoDeDespesasMensais[[#Headers],[Maio]]&_ANO),Outros[Solicitação de seleção de data iniciada],\"<=\"&H$4)","v":{"v":0,"d":"R$ 0.00"}},{"$f":"SUMIFS(DespesasDiscriminadas[Verifique quantidade],DespesasDiscriminadas[Razão código],ResumoDeDespesasMensais[[#This Row],[Razão código]],DespesasDiscriminadas[Data da fatura:],\">=\"&I$3,DespesasDiscriminadas[Data da fatura:],\"<=\"&I$4)+SUMIFS(Outros[Verifique quantidade],Outros[Razão código],ResumoDeDespesasMensais[[#This Row],[Razão código]],Outros[Solicitação de seleção de data iniciada],\">=\"&DATEVALUE(\" 1 \"&ResumoDeDespesasMensais[[#Headers],[Jun]]&_ANO),Outros[Solicitação de seleção de data iniciada],\"<=\"&I$4)","v":{"v":0,"d":"R$ 0.00"}},{"$f":"SUMIFS(DespesasDiscriminadas[Verifique quantidade],DespesasDiscriminadas[Razão código],ResumoDeDespesasMensais[[#This Row],[Razão código]],DespesasDiscriminadas[Data da fatura:],\">=\"&J$3,DespesasDiscriminadas[Data da fatura:],\"<=\"&J$4)+SUMIFS(Outros[Verifique quantidade],Outros[Razão código],ResumoDeDespesasMensais[[#This Row],[Razão código]],Outros[Solicitação de seleção de data iniciada],\">=\"&DATEVALUE(\" 1 \"&ResumoDeDespesasMensais[[#Headers],[Julho]]&_ANO),Outros[Solicitação de seleção de data iniciada],\"<=\"&J$4)","v":{"v":0,"d":"R$ 0.00"}},{"$f":"SUMIFS(DespesasDiscriminadas[Verifique quantidade],DespesasDiscriminadas[Razão código],ResumoDeDespesasMensais[[#This Row],[Razão código]],DespesasDiscriminadas[Data da fatura:],\">=\"&K$3,DespesasDiscriminadas[Data da fatura:],\"<=\"&K$4)+SUMIFS(Outros[Verifique quantidade],Outros[Razão código],ResumoDeDespesasMensais[[#This Row],[Razão código]],Outros[Solicitação de seleção de data iniciada],\">=\"&DATEVALUE(\" 1 \"&ResumoDeDespesasMensais[[#Headers],[Agosto]]&_ANO),Outros[Solicitação de seleção de data iniciada],\"<=\"&K$4)","v":{"v":0,"d":"R$ 0.00"}},{"$f":"SUMIFS(DespesasDiscriminadas[Verifique quantidade],DespesasDiscriminadas[Razão código],ResumoDeDespesasMensais[[#This Row],[Razão código]],DespesasDiscriminadas[Data da fatura:],\">=\"&L$3,DespesasDiscriminadas[Data da fatura:],\"<=\"&L$4)+SUMIFS(Outros[Verifique quantidade],Outros[Razão código],ResumoDeDespesasMensais[[#This Row],[Razão código]],Outros[Solicitação de seleção de data iniciada],\">=\"&DATEVALUE(\" 1 \"&ResumoDeDespesasMensais[[#Headers],[Setembro]]&_ANO),Outros[Solicitação de seleção de data iniciada],\"<=\"&L$4)","v":{"v":0,"d":"R$ 0.00"}},{"$f":"SUMIFS(DespesasDiscriminadas[Verifique quantidade],DespesasDiscriminadas[Razão código],ResumoDeDespesasMensais[[#This Row],[Razão código]],DespesasDiscriminadas[Data da fatura:],\">=\"&M$3,DespesasDiscriminadas[Data da fatura:],\"<=\"&M$4)+SUMIFS(Outros[Verifique quantidade],Outros[Razão código],ResumoDeDespesasMensais[[#This Row],[Razão código]],Outros[Solicitação de seleção de data iniciada],\">=\"&DATEVALUE(\" 1 \"&ResumoDeDespesasMensais[[#Headers],[Outubro]]&_ANO),Outros[Solicitação de seleção de data iniciada],\"<=\"&M$4)","v":{"v":0,"d":"R$ 0.00"}},{"$f":"SUMIFS(DespesasDiscriminadas[Verifique quantidade],DespesasDiscriminadas[Razão código],ResumoDeDespesasMensais[[#This Row],[Razão código]],DespesasDiscriminadas[Data da fatura:],\">=\"&N$3,DespesasDiscriminadas[Data da fatura:],\"<=\"&N$4)+SUMIFS(Outros[Verifique quantidade],Outros[Razão código],ResumoDeDespesasMensais[[#This Row],[Razão código]],Outros[Solicitação de seleção de data iniciada],\">=\"&DATEVALUE(\" 1 \"&ResumoDeDespesasMensais[[#Headers],[Novembro]]&_ANO),Outros[Solicitação de seleção de data iniciada],\"<=\"&N$4)","v":{"v":0,"d":"R$ 0.00"}},{"$f":"SUMIFS(DespesasDiscriminadas[Verifique quantidade],DespesasDiscriminadas[Razão código],ResumoDeDespesasMensais[[#This Row],[Razão código]],DespesasDiscriminadas[Data da fatura:],\">=\"&O$3,DespesasDiscriminadas[Data da fatura:],\"<=\"&O$4)+SUMIFS(Outros[Verifique quantidade],Outros[Razão código],ResumoDeDespesasMensais[[#This Row],[Razão código]],Outros[Solicitação de seleção de data iniciada],\">=\"&DATEVALUE(\" 1 \"&ResumoDeDespesasMensais[[#Headers],[Dezembro]]&_ANO),Outros[Solicitação de seleção de data iniciada],\"<=\"&O$4)","v":{"v":0,"d":"R$ 0.00"}},{"$f":"SUM(ResumoDeDespesasMensais[[#This Row],[Janeiro]:[Dezembro]])","v":{"v":0,"d":"R$ 0.00"}}]
[null,"Total",null,{"$f":"SUBTOTAL(109,ResumoDeDespesasMensais[Janeiro])","v":{"v":0,"d":"R$ 0.00"}},{"$f":"SUBTOTAL(109,ResumoDeDespesasMensais[Fevereiro])","v":{"v":0,"d":"R$ 0.00"}},{"$f":"SUBTOTAL(109,ResumoDeDespesasMensais[Março])","v":{"v":0,"d":"R$ 0.00"}},{"$f":"SUBTOTAL(109,ResumoDeDespesasMensais[Abr])","v":{"v":0,"d":"R$ 0.00"}},{"$f":"SUBTOTAL(109,ResumoDeDespesasMensais[Maio])","v":{"v":0,"d":"R$ 0.00"}},{"$f":"SUBTOTAL(109,ResumoDeDespesasMensais[Jun])","v":{"v":0,"d":"R$ 0.00"}},{"$f":"SUBTOTAL(109,ResumoDeDespesasMensais[Julho])","v":{"v":0,"d":"R$ 0.00"}},{"$f":"SUBTOTAL(109,ResumoDeDespesasMensais[Agosto])","v":{"v":0,"d":"R$ 0.00"}},{"$f":"SUBTOTAL(109,ResumoDeDespesasMensais[Setembro])","v":{"v":0,"d":"R$ 0.00"}},{"$f":"SUBTOTAL(109,ResumoDeDespesasMensais[Outubro])","v":{"v":0,"d":"R$ 0.00"}},{"$f":"SUBTOTAL(109,ResumoDeDespesasMensais[Novembro])","v":{"v":0,"d":"R$ 0.00"}},{"$f":"SUBTOTAL(109,ResumoDeDespesasMensais[Dezembro])","v":{"v":0,"d":"R$ 0.00"}},{"$f":"SUBTOTAL(109,ResumoDeDespesasMensais[Total])","v":{"v":0,"d":"R$ 0.00"}}]

{"sheet":"DESPESAS DISCRIMINADAS","index":2,"n_rows":6,"n_cols":10,"rows_kept":6,"merged":[[1,1,1,9],[2,1,2,5],[2,6,2,9]]}
[]
[null,"DESPESAS ENUMERADAS"]
[]
[null,"Razão código","Data da fatura:","Fatura nº","Solicitado por","Verifique quantidade","Credor","Verificar uso","Método de distribuição","Data do arquivo"]
[null,1000,"Data",100,"Andy Teal",{"v":750.75,"d":"R$ 750.75"},"Mensageiro Consolidado ","Mensageiro","Email","Data"]
[null,7000,"Data",101,"Robert Walters",{"v":2500,"d":"R$ 2,500.00"},"A. Datum Corporation ","2 computadores de mesa","Crédito","Data"]

{"sheet":"DONATIVOS E PATROCÍNIOS","index":3,"n_rows":6,"n_cols":12,"rows_kept":6,"merged":[[1,1,1,11],[2,1,2,5],[2,6,2,11]]}
[]
[null,"DONATIVOS E PATROCÍNIOS"]
[]
[null,"Razão código","Solicitação de seleção de data iniciada","Solicitado por","Verifique quantidade","Contribuição ano anterior","Credor","Usado para","Assinada por","Categoria","Método de distribuição","Data do arquivo"]
[null,12000,"Data","Susan W. Eaton",{"v":1000,"d":"R$ 1,000.00"},{"v":12,"d":"R$ 12.00"},"Escola de Belas Artes ","Bolsas de estudo","Karolina Ralls","Artes","Verificar","Data"]
[null,11000,"Data","Susan W. Eaton",{"v":2500,"d":"R$ 2,500.00"},{"v":0,"d":"R$ 0.00"},"Brinquedos Wingtip ","Comunidade","Kathie Flood","Comunidade","Verificar","Data"]